Workbook

Sheet Portada

Sheet Simulador
C2: Cómo funciona esta herramienta
B5: 1 | C5: Selecciona el tipo de producto
B8: 2 | C8: Se desplegará una ventana en la que debes seleccionar como red del producto la unica opcion Itaú.
B11: 3 | C11: Si aplica, selecciona el producto específico al que realizarás el cálculo.
B14: 4 | C14: Diligencia las variables de entrada, las cuales identificarás con este color:
B17: 5 | C17: Una vez diligenciados los datos, busca al lado derecho el bontón "Realizar Cálculo"y da clic en él para conocer el VTU.
B20: 6 | C20: Puedes volver al menu principal dando clic en la imangen de la casa.

Sheet Consumo
B1: Valor Total Unificado
B2: Consumo | K2: Datos en blanco | L2: =IF(OR(C7="",C8=0,C9=0,C11=0,C13=""),1,0) -> 0
B3: Cifras en Pesos | D3: Volver | K3: DIferencia | L3: =IF(OR(AND(L4=0,L5=0),AND(L4=1,L5=0),AND(L5=1,L4=0)),1,0) -> 1
K4: Cálculo | L4: 1
B5: Detalles del Credito | D5: Seleccione tipo de vehículo | F5: Costos | K5: Validación | L5: =IF(AND(L6=D7,C7=L7,C8=L8,C9=L9,C10=L10,C11=L11,C12=L12,C13=L13,C14=L14),1,0) -> 0
L6: Usado
B7: Modalidad del Crédito | C7: Crédito Personal | D7: Usado | E7: =IF(C7='Base Activos'!J120,1,IF(C7='Base Activos'!J121,2,0)) -> 0 | F7: Total costos | G7: =IF(L4=0,0,SUM(G12:G17)+SUM(G8:G10)) -> 9019765.974 | L7: Libranza Privada
B8: Valor crédito | C8: 500000000 | D8: =IF(OR(E7=1,E7=2),D7,"") ->  | F8: Estudio de crédito | G8: =IF(L4=0,0,VLOOKUP(C7,'Base Activos'!C132:G144,5,0)) -> 0 | H8: 1 | L8: 500000000
B9: Tasa mes vencido (mv) | C9: 0.05 | F9: Seguro de vida | G9: =IF(L4=0,0,SUM(G24:G132)) -> 9019765.974 | H9: 1 | L9: 0.05
B10: Tasa efectivo anual (EA) | C10: =+((1+C9)^12)-1 -> 0.795856326 | F10: Costo del desembolso | G10: =IF($L$4=0,0,IF(D13=1,'Base Activos'!$G$148,VLOOKUP($C$7,'Base Activos'!$C$132:$F$144,HLOOKUP($C$13,'Base Activos'!$D$132:$F$133,2,0),0))) -> 0 | H10: 1 | L10: 0.795856326
B11: Plazo de Financiación (meses) | C11: 32 | D11: =CONCATENATE("El plazo máximo de este producto es ",E11," meses.") -> El plazo máximo de este producto es 60 meses. | E11: =VLOOKUP(C7,Listado_Gracia_Plazo,3,0) -> 60 | F11: Comisión por aval | G11: =IF(L4=0,0,IF(H12=1,VLOOKUP(F11,ComisionesConsumo,2,0),0)) -> 0 | L11: 32
B12: Seguro de Vida | C12: =IFERROR(VLOOKUP(C7,'Base Activos'!$J$114:$O$125,6,0),"") -> 0.00088 | F12: Valor comisión por aval | G12: =IF(L4=0,0,IF(H12=1,G11*C8,0)) -> 0 | H12: =IF(C7='Base Activos'!J124,1,0) -> 0 | L12: 0.000995
B13: Forma del Desembolso | C13: Mixta | D13: =IF(C13='Base Activos'!G125,1,0) -> 1 | F13: Registro garantía ante Confecámaras | G13: =IF(L4=0,0,IF(H13=1,VLOOKUP(F13,ComisionesConsumo,2,0),0)) -> 0 | H13: =IF(E7=1,1,0) -> 0 | L13: Abono en cuenta
B14: Periodos de gracia | C14: =IF(E14=0,0,D14) -> 0 | D14: 0 | E14: =IFERROR(VLOOKUP(C7,Listado_Gracia_Plazo,2,0),0) -> 0 | F14: Levantamiento prenda Confecamáras | G14: =IF(L4=0,0,IF(H13=1,VLOOKUP(F14,ComisionesConsumo,2,0),0)) -> 0 | H14: =IF(E7=1,1,0) -> 0 | L14: 0
C15: =IF(E14>0,CONCATENATE("Según modalidad del crédito máximo ",E14," meses para ",E15),"") ->  | E15: =IFERROR(VLOOKUP(C7,Listado_Gracia_Plazo,5,0),0) -> 0 | F15: Avalúo convenio | G15: =IF(L4=0,0,IF(H15=1,VLOOKUP(F15,ComisionesConsumo,2,0),0)) -> 0 | H15: =IF(D8="usado",1,0) -> 0
B16: Costos inherentes | C16: =IF(L4=0,0,G7) -> 9019765.974 | F16: Certificado Dijín (vehículos usados) | G16: =IF(L4=0,0,IF(H16=1,VLOOKUP(F16,ComisionesConsumo,2,0),0)) -> 0 | H16: =IF(D8="usado",1,0) -> 0
B17: Intereses cobrados | C17: =IF(L4=0,0,SUM(F24:F132)) -> 512486703.1 | F17: Valor traspaso | G17: =IF(L4=0,0,IF(H17=1,VLOOKUP(F17,ComisionesConsumo,2,0),0)) -> 0 | H17: =IF(E7=2,1,0) -> 0
B18: VTUA Pesos | C18: =IF(L4=0,0,-SUM(C16:C17)) -> -521506469.1
B19: VTUA Porcentual | C19: =IF(L4=0,0,IRR(I24:I132)) -> 0.05088 | D19: =((1+C19)^12)-1 -> 0.8140009961
B21: Amortización mensual
B23: No. Cuota | C23: Saldo Capital | E23: Abono Capital | F23: Intereses | G23: Seguro de Vida | H23: Pago Total | I23: Flujo
A24: 0 | B24: =0 -> 0 | I24: =C8 -> 500000000
A25: 1 | B25: =+IF($C$11>=A25,A25,"") -> 1 | C25: =+C8 -> 500000000 | D25: =IF(AND($C$14>0,B25>$C$14),IF(B25="","",PMT($C$9,$C$11-$C$14,-$C$25,0)),IF($C$14=0,IF(B25="","",PMT($C$9,$C$11,-$C$25,0)),0)) -> 31640209.47 | E25: =IF(AND($C$14>0,B25<=$C$14),0,IF(B25="","",+D25-F25)) -> 6640209.472 | F25: =IF(AND($C$14>0,B25<=$C$14),IF($E$15="capital",C25*$C$9,IF($E$15="capital e intereses",0)),IF(B25="","",+C25*$C$9)) -> 25000000 | G25: =IF(AND($C$14>0,B25<=$C$14),IF($E$15="capital",C25*$C$12,IF($E$15="capital e intereses",0)),IF(B25="","",+C25*$C$12)) -> 440000 | H25: =IF(B25="","",+D25+G25) -> 32080209.47 | I25: =IF(C25="","",-H25-(G8+G10+G12+G13+G14+G15+G16)) -> -32080209.47
A26: 2 | B26: =+IF($C$11>=A26,A26,"") -> 2 | C26: =IF(B26="","",+C25-E25) -> 493359790.5 | D26: 31640209.47 | E26: 6972219.945 | F26: 24667989.53 | G26: 434156.6157 | H26: =IF(B26="","",+D26+G26) -> 32074366.09 | I26: =IF(C26="","",IF(AND($E$7=2,$C$11=B26),-H26-$G$17,-H26)) -> -32074366.09
A27: 3 | B27: 3 | C27: =IF(B27="","",+C26-E26) -> 486387570.6 | D27: 31640209.47 | E27: 7320830.942 | F27: 24319378.53 | G27: 428021.0621 | H27: =IF(B27="","",+D27+G27) -> 32068230.53 | I27: =IF(C27="","",IF(AND($E$7=2,$C$11=B27),-H27-$G$17,-H27)) -> -32068230.53
A28: 4 | B28: 4 | C28: 479066739.6 | D28: 31640209.47 | E28: 7686872.49 | F28: 23953336.98 | G28: 421578.7309 | H28: 32061788.2 | I28: -32061788.2
A29: 5 | B29: 5 | C29: 471379867.2 | D29: 31640209.47 | E29: 8071216.114 | F29: 23568993.36 | G29: 414814.2831 | H29: 32055023.75 | I29: -32055023.75
A30: 6 | B30: 6 | C30: 463308651 | D30: 31640209.47 | E30: 8474776.92 | F30: 23165432.55 | G30: 407711.6129 | H30: 32047921.08 | I30: -32047921.08
A31: 7 | B31: 7 | C31: 454833874.1 | D31: 31640209.47 | E31: 8898515.766 | F31: 22741693.71 | G31: 400253.8092 | H31: 32040463.28 | I31: -32040463.28
A32: 8 | B32: 8 | C32: 445935358.4 | D32: 31640209.47 | E32: 9343441.554 | F32: 22296767.92 | G32: 392423.1153 | H32: 32032632.59 | I32: -32032632.59
A33: 9 | B33: 9 | C33: 436591916.8 | D33: 31640209.47 | E33: 9810613.632 | F33: 21829595.84 | G33: 384200.8868 | H33: 32024410.36 | I33: -32024410.36
A34: 10 | B34: 10 | C34: 426781303.2 | D34: 31640209.47 | E34: 10301144.31 | F34: 21339065.16 | G34: 375567.5468 | H34: 32015777.02 | I34: -32015777.02
A35: 11 | B35: 11 | C35: 416480158.9 | D35: 31640209.47 | E35: 10816201.53 | F35: 20824007.94 | G35: 366502.5398 | H35: 32006712.01 | I35: -32006712.01
A36: 12 | B36: 12 | C36: 405663957.3 | D36: 31640209.47 | E36: 11357011.61 | F36: 20283197.87 | G36: 356984.2824 | H36: 31997193.75 | I36: -31997193.75
A37: 13 | B37: 13 | C37: 394306945.7 | D37: 31640209.47 | E37: 11924862.19 | F37: =IF(AND($C$14>0,B37<=$C$14),IF($E$15="capital",C37*$C$9,IF($E$15="capital e intereses",0)),IF(B37="","",+C37*$C$9)) -> 19715347.29 | G37: 346990.1122 | H37: 31987199.58 | I37: -31987199.58
A38: 14 | B38: 14 | C38: 382382083.5 | D38: 31640209.47 | E38: 12521105.3 | F38: 19119104.18 | G38: 336496.2335 | H38: 31976705.71 | I38: -31976705.71
A39: 15 | B39: 15 | C39: 369860978.2 | D39: 31640209.47 | E39: 13147160.56 | F39: 18493048.91 | G39: 325477.6608 | H39: 31965687.13 | I39: -31965687.13
A40: 16 | B40: 16 | C40: 356713817.7 | D40: 31640209.47 | E40: 13804518.59 | F40: 17835690.88 | G40: 313908.1596 | H40: 31954117.63 | I40: -31954117.63
A41: 17 | B41: 17 | C41: 342909299.1 | D41: 31640209.47 | E41: 14494744.52 | F41: 17145464.95 | G41: 301760.1832 | H41: 31941969.65 | I41: -31941969.65
A42: 18 | B42: 18 | C42: 328414554.6 | D42: 31640209.47 | E42: 15219481.74 | F42: 16420727.73 | G42: 289004.808 | H42: 31929214.28 | I42: -31929214.28
A43: 19 | B43: 19 | C43: 313195072.8 | D43: 31640209.47 | E43: 15980455.83 | F43: 15659753.64 | G43: 275611.6641 | H43: 31915821.14 | I43: -31915821.14
A44: 20 | B44: 20 | C44: 297214617 | D44: 31640209.47 | E44: 16779478.62 | F44: 14860730.85 | G44: 261548.863 | H44: 31901758.33 | I44: -31901758.33
A45: 21 | B45: 21 | C45: 280435138.4 | D45: 31640209.47 | E45: 17618452.55 | F45: 14021756.92 | G45: 246782.9218 | H45: 31886992.39 | I45: -31886992.39
A46: 22 | B46: 22 | C46: 262816685.8 | D46: 31640209.47 | E46: 18499375.18 | F46: 13140834.29 | G46: 231278.6835 | H46: 31871488.16 | I46: -31871488.16
A47: 23 | B47: 23 | C47: 244317310.6 | D47: 31640209.47 | E47: 19424343.94 | F47: 12215865.53 | G47: 214999.2334 | H47: 31855208.71 | I47: -31855208.71
A48: 24 | B48: 24 | C48: 224892966.7 | D48: 31640209.47 | E48: 20395561.14 | F48: 11244648.34 | G48: 197905.8107 | H48: 31838115.28 | I48: -31838115.28
A49: 25 | B49: 25 | C49: 204497405.6 | D49: 31640209.47 | E49: 21415339.19 | F49: 10224870.28 | G49: 179957.7169 | H49: 31820167.19 | I49: -31820167.19
A50: 26 | B50: 26 | C50: 183082066.4 | D50: 31640209.47 | E50: 22486106.15 | F50: 9154103.319 | G50: 161112.2184 | H50: 31801321.69 | I50: -31801321.69
A51: 27 | B51: 27 | C51: 160595960.2 | D51: 31640209.47 | E51: 23610411.46 | F51: 8029798.011 | G51: 141324.445 | H51: 31781533.92 | I51: -31781533.92
A52: 28 | B52: 28 | C52: 136985548.8 | D52: 31640209.47 | E52: 24790932.03 | F52: 6849277.438 | G52: 120547.2829 | H52: 31760756.75 | I52: -31760756.75
A53: 29 | B53: 29 | C53: 112194616.7 | D53: 31640209.47 | E53: 26030478.64 | F53: 5609730.836 | G53: 98731.26272 | H53: 31738940.73 | I53: -31738940.73
A54: 30 | B54: 30 | C54: 86164138.09 | D54: 31640209.47 | E54: 27332002.57 | F54: 4308206.905 | G54: 75824.44152 | H54: 31716033.91 | I54: -31716033.91
A55: 31 | B55: 31 | C55: 58832135.53 | D55: 31640209.47 | E55: 28698602.7 | F55: 2941606.776 | G55: 51772.27926 | H55: 31691981.75 | I55: -31691981.75
A56: 32 | B56: 32 | C56: 30133532.83 | D56: 31640209.47 | E56: 30133532.83 | F56: 1506676.642 | G56: 26517.50889 | H56: 31666726.98 | I56: -31666726.98
A57: 33 | F57: =IF(AND($C$14>0,B57<=$C$14),IF($E$15="capital",C57*$C$9,IF($E$15="capital e intereses",0)),IF(B57="","",+C57*$C$9)) ->  | G57: =IF(AND($C$14>0,B57<=$C$14),IF($E$15="capital",C57*$C$12,IF($E$15="capital e intereses",0)),IF(B57="","",+C57*$C$12)) -> 
A58: 34 | I58: =IF(C58="","",IF(AND($E$7=2,$C$11=B58),-H58-$G$17,-H58)) -> 
A59: 35
A60: 36
A61: 37
A62: 38
A63: 39
A64: 40
A65: 41
A66: 42
A67: 43
A68: 44
A69: 45
A70: 46
A71: 47
A72: 48
A73: 49
A74: 50
A75: 51
A76: 52
A77: 53
A78: 54
A79: 55
A80: 56
A81: 57
A82: 58
A83: 59
A84: 60
A85: 61
A86: 62
A87: 63
A88: 64
A89: 65 | F89: =IF(AND($C$14>0,B89<=$C$14),IF($E$15="capital",C89*$C$9,IF($E$15="capital e intereses",0)),IF(B89="","",+C89*$C$9)) ->  | G89: =IF(AND($C$14>0,B89<=$C$14),IF($E$15="capital",C89*$C$12,IF($E$15="capital e intereses",0)),IF(B89="","",+C89*$C$12)) -> 
A90: 66 | B90: =+IF($C$11>=A90,A90,"") ->  | I90: =IF(C90="","",IF(AND($E$7=2,$C$11=B90),-H90-$G$17,-H90)) -> 
A91: 67 | C91: =IF(B91="","",+C90-E90) ->  | D91: =IF(AND($C$14>0,B91>$C$14),IF(B91="","",PMT($C$9,$C$11-$C$14,-$C$25,0)),IF($C$14=0,IF(B91="","",PMT($C$9,$C$11,-$C$25,0)),0)) ->  | E91: =IF(AND($C$14>0,B91<=$C$14),0,IF(B91="","",+D91-F91)) ->  | H91: =IF(B91="","",+D91+G91) -> 
A92: 68
A93: 69
A94: 70
A95: 71
A96: 72
A97: 73
A98: 74
A99: 75
A100: 76
A101: 77
A102: 78
A103: 79
A104: 80
A105: 81
A106: 82
A107: 83
A108: 84
A109: 85
A110: 86
A111: 87
A112: 88
A113: 89
A114: 90
A115: 91
A116: 92
A117: 93
A118: 94
A119: 95
A120: 96
A121: 97 | F121: =IF(AND($C$14>0,B121<=$C$14),IF($E$15="capital",C121*$C$9,IF($E$15="capital e intereses",0)),IF(B121="","",+C121*$C$9)) ->  | G121: =IF(AND($C$14>0,B121<=$C$14),IF($E$15="capital",C121*$C$12,IF($E$15="capital e intereses",0)),IF(B121="","",+C121*$C$12)) -> 
A122: 98 | I122: =IF(C122="","",IF(AND($E$7=2,$C$11=B122),-H122-$G$17,-H122)) -> 
A123: 99
A124: 100
A125: 101
A126: 102
A127: 103
A128: 104
A129: 105
A130: 106
A131: 107
A132: 108

Sheet Rotativo
B1: Valor Total Unificado
B2: ='Base Activos'!C23 -> Crédito Rotativo
B3: Cifras en Pesos | I3: volver
B5: Producto | D5: Crédito Rotativo
B6: Tipo | D6: Rotativo Educativo
B8: Cupo de seis (6) Salarios mínimos mensuales legales vigentes (SMMLV)
B9: Tasa de interes | D9: =VLOOKUP(D6,'Base Activos'!$C$26:$E$29,2,0) -> 0.1956
D10: =(NOMINAL(D9,12))/12 -> 0.01499871446
B11: Cupo | D11: =SMLV*6 -> 7800000
B12: Plazo diferido | D12: =VLOOKUP(D6,'Base Activos'!$C$26:$E$29,3,0) -> 12
B13: Cuota de manejo mensual | D13: =HLOOKUP('Base Activos'!$D$1,'Base Activos'!$H$31:$K$35,VLOOKUP(Rotativo!D6,'Base Activos'!$H$31:$K$35,4,0),0) -> 29900
B14: Meses exonerados | D14: =VLOOKUP(D6,'Base Activos'!$C$26:$F$29,4,0) -> 0
B17: Amortización mensual
B19: Compra mes | C19: Intereses | D19: Abono a capital | E19: Cuota del crédito | F19: Cuota de Manejo | G19: Pago Total | H19: Pago efectivamente realizado | I19: Nuevo Cupo Disponible | J19: Nuevos consumos | K19: Saldo capital | L19: Flujos
B20: 0 | J20: =D11 -> 7800000 | K20: =J20 -> 7800000 | L20: =-H20+J20 -> 7800000
B21: 1 | C21: 0 | D21: =($D$11/$D$12) -> 650000 | E21: =+C21+D21 -> 650000 | F21: =IF(B21<=$D$14,0,$D$13) -> 29900 | G21: =K21+C21+F21 -> 7829900 | H21: =E21+F21 -> 679900 | I21: =$D$11-($D$11-(H21-(F21+C21))) -> 650000 | J21: =I21 -> 650000 | K21: =D11 -> 7800000 | L21: =-H21+J21 -> -29900
B22: 2 | C22: =(K21*D10+(K21-E21)*(D10)) -> 224230.7812 | D22: =($D$11/$D$12) -> 650000 | E22: 874230.7812 | F22: =IF(B22<=$D$14,0,$D$13) -> 29900 | G22: =K21+C22+F22 -> 8054130.781 | H22: =E22+F22 -> 904130.7812 | I22: =$D$11-($D$11-(H22-(F22+C22))) -> 650000 | J22: =I22 -> 650000 | K22: =((K21+J22)-(H22-(F22+C22))) -> 7800000 | L22: =-H22+J22 -> -254130.7812
B23: 3 | C23: =((K22-D22)*($D$10)) -> 107240.8084 | D23: 650000 | E23: 757240.8084 | F23: 29900 | G23: 7937140.808 | H23: 787140.8084 | I23: 650000 | J23: 650000 | K23: 7800000 | L23: =-H23+J23 -> -137140.8084
B24: 4 | C24: =((K23-D23)*($D$10)) -> 107240.8084 | D24: 650000 | E24: 757240.8084 | F24: 29900 | G24: 7937140.808 | H24: 787140.8084 | I24: 650000 | J24: 650000 | K24: 7800000 | L24: =-H24+J24 -> -137140.8084
B25: 5 | C25: 107240.8084 | D25: 650000 | E25: 757240.8084 | F25: 29900 | G25: 7937140.808 | H25: 787140.8084 | I25: 650000 | J25: 650000 | K25: 7800000 | L25: -137140.8084
B26: 6 | C26: 107240.8084 | D26: 650000 | E26: 757240.8084 | F26: 29900 | G26: 7937140.808 | H26: 787140.8084 | I26: 650000 | J26: 650000 | K26: 7800000 | L26: -137140.8084
B27: 7 | C27: 107240.8084 | D27: 650000 | E27: 757240.8084 | F27: 29900 | G27: 7937140.808 | H27: 787140.8084 | I27: 650000 | J27: 650000 | K27: 7800000 | L27: -137140.8084
B28: 8 | C28: 107240.8084 | D28: 650000 | E28: 757240.8084 | F28: 29900 | G28: 7937140.808 | H28: 787140.8084 | I28: 650000 | J28: 650000 | K28: 7800000 | L28: -137140.8084
B29: 9 | C29: 107240.8084 | D29: 650000 | E29: 757240.8084 | F29: 29900 | G29: 7937140.808 | H29: 787140.8084 | I29: 650000 | J29: 650000 | K29: 7800000 | L29: -137140.8084
B30: 10 | C30: 107240.8084 | D30: 650000 | E30: 757240.8084 | F30: 29900 | G30: 7937140.808 | H30: 787140.8084 | I30: 650000 | J30: 650000 | K30: 7800000 | L30: -137140.8084
B31: 11 | C31: 107240.8084 | D31: 650000 | E31: 757240.8084 | F31: 29900 | G31: 7937140.808 | H31: 787140.8084 | I31: 650000 | J31: 650000 | K31: 7800000 | L31: -137140.8084
B32: 12 | C32: 107240.8084 | D32: 650000 | E32: 757240.8084 | F32: 29900 | G32: 7937140.808 | H32: =G32 -> 7937140.808 | I32: 7800000 | J32: 0 | K32: 0 | L32: -7937140.808
B36: Intereses | D36: =SUM(C21:C32) -> 1296638.865
B37: Cuota de manejo | D37: =SUM(F21:F32) -> 358800
B38: VTUA pesos | D38: =SUM(D36:D37) -> 1655438.865
B39: VTUA % | D39: =IRR(L20:L32) -> 0.01767278108 | E39: =+((1+D39)^12)-1 -> 0.2339509797

Sheet TarjetaCrédito
B1: Valor Total Unificado
B2: Tarjeta de crédito
B3: Cifras en Pesos | I3: volver
B5: Producto | D5: Tarjeta de crédito
B6: Tipo de tarjeta de crédito
B7: Cupo estimado cliente
B9: =IF(E9=1,CONCATENATE("VTUA según cupo: "&B13),CONCATENATE("VTUA según categoría: "&B47)) ->  | E9: =VLOOKUP(D7,RangoCupo,2,0) -> 
B13: Cupo de dos (2) Salarios mínimos mensuales legales vigentes (SMMLV)
B16: Tasa de interes compras | D16: ='Base Activos'!$D$7 -> 0.2591
D17: =(NOMINAL(D16,12))/12 -> 0.01938526578
B18: Cupo | D18: =SMLV*2 -> 2600000
B19: Plazo diferido | D19: ='Base Activos'!$D$8 -> 12
B20: Cuota de manejo mensual | D20: =VLOOKUP($D$6,cuota_manejo,3,0) -> 
B21: Meses exonerados | D21: ='Base Activos'!$D$9 -> 6
B24: Compra mes | C24: Intereses | D24: Abono a capital | E24: Cuota del crédito | F24: Cuota de Manejo | G24: Pago Total | H24: Pago efectivamente realizado | I24: Nuevo Cupo Disponible | J24: Nuevos consumos | K24: Saldo capital | L24: Flujos
B25: 0 | J25: =D18 -> 2600000 | K25: =J25 -> 2600000 | L25: =-H25+J25 -> 2600000
B26: 1 | C26: 0 | D26: =($D$18/$D$19) -> 216666.6667 | E26: =+C26+D26 -> 216666.6667 | F26: =IF(B26<=$D$21,0,$D$20) -> 0 | G26: =K26+C26+F26 -> 2600000 | H26: =E26+F26 -> 216666.6667 | I26: =$D$18-($D$18-(H26-(F26+C26))) -> 216666.6667 | J26: =I26 -> 216666.6667 | K26: =D18 -> 2600000 | L26: =-H26+J26 -> 0
B27: 2 | C27: =(K26*D17+(K26-E26)*(D17)) -> 96603.24113 | D27: =($D$18/$D$19) -> 216666.6667 | E27: 313269.9078 | F27: 0 | G27: =K26+C27+F27 -> 2696603.241 | H27: =E27+F27 -> 313269.9078 | I27: 216666.6667 | J27: =I27 -> 216666.6667 | K27: =((K26+J27)-(H27-(F27+C27))) -> 2600000 | L27: =-H27+J27 -> -96603.24113
B28: 3 | C28: =((K27-D27)*($D$17)) -> 46201.55011 | D28: =($D$18/$D$19) -> 216666.6667 | E28: 262868.2168 | F28: 0 | G28: 2646201.55 | H28: 262868.2168 | I28: 216666.6667 | J28: 216666.6667 | K28: 2600000 | L28: =-H28+J28 -> -46201.55011
B29: 4 | C29: 46201.55011 | D29: =($D$18/$D$19) -> 216666.6667 | E29: 262868.2168 | F29: 0 | G29: 2646201.55 | H29: 262868.2168 | I29: 216666.6667 | J29: 216666.6667 | K29: 2600000 | L29: -46201.55011
B30: 5 | C30: 46201.55011 | D30: 216666.6667 | E30: 262868.2168 | F30: 0 | G30: 2646201.55 | H30: 262868.2168 | I30: 216666.6667 | J30: 216666.6667 | K30: 2600000 | L30: -46201.55011
B31: 6 | C31: 46201.55011 | D31: 216666.6667 | E31: 262868.2168 | F31: 0 | G31: 2646201.55 | H31: 262868.2168 | I31: 216666.6667 | J31: 216666.6667 | K31: 2600000 | L31: -46201.55011
B32: 7 | C32: 46201.55011 | D32: 216666.6667 | E32: 262868.2168
B33: 8 | D33: 216666.6667
B34: 9 | D34: 216666.6667
B35: 10 | D35: 216666.6667
B36: 11 | D36: 216666.6667
B37: 12 | D37: 216666.6667 | H37: =G37 ->  | J37: 0
B41: Intereses | D41: =SUM(C26:C37) -> 
B42: Cuota de manejo | D42: =SUM(F26:F37) -> 
B43: VTUA pesos | D43: =SUM(D41:D42) -> 
B44: VTUA % | D44: =IRR(L25:L37) ->  | E44: =+((1+D44)^12)-1 -> 
B47: Cupo de seis (6) Salarios mínimos mensuales legales vigentes (SMMLV)
B50: Tasa compras | D50: ='Base Activos'!$D$7 -> 0.2591
D51: =(NOMINAL(D50,12))/12 -> 0.01938526578
B52: Cupo | D52: =SMLV*6 -> 7800000
B53: Plazo diferido | D53: ='Base Activos'!$D$8 -> 12
B54: Cuota de manejo mensual | D54: =VLOOKUP($D$6,cuota_manejo,3,0) -> 
B55: Meses exonerados | D55: ='Base Activos'!$D$9 -> 6
B58: Compra mes | C58: Intereses | D58: Abono a capital | E58: Cuota del crédito | F58: Cuota de Manejo | G58: Pago Total | H58: Pago efectivamente realizado | I58: Nuevo Cupo Disponible | J58: Nuevos consumos | K58: Saldo capital | L58: Flujos
B59: 0 | J59: =D52 -> 7800000 | K59: =J59 -> 7800000 | L59: =-H59+J59 -> 7800000
B60: 1 | C60: 0 | D60: =($D$52/$D$53) -> 650000 | E60: =+C60+D60 -> 650000 | F60: =IF(B60<=$D$55,0,$D$54) -> 0 | G60: =K60+C60+F60 -> 7800000 | H60: =E60+F60 -> 650000 | I60: =$D$52-($D$52-(H60-(F60+C60))) -> 650000 | J60: =I60 -> 650000 | K60: =D52 -> 7800000 | L60: =-H60+J60 -> 0
B61: 2 | C61: =(K60*D51+(K60-E60)*(D51)) -> 289809.7234 | D61: =($D$52/$D$53) -> 650000 | E61: 939809.7234 | F61: =IF(B61<=$D$55,0,$D$54) -> 0 | G61: =K60+C61+F61 -> 8089809.723 | H61: =E61+F61 -> 939809.7234 | I61: 650000 | J61: =I61 -> 650000 | K61: =((K60+J61)-(H61-(F61+C61))) -> 7800000 | L61: =-H61+J61 -> -289809.7234
B62: 3 | C62: =((K61-D61)*($D$51)) -> 138604.6503 | D62: 650000 | E62: 788604.6503 | F62: 0 | G62: 7938604.65 | H62: 788604.6503 | I62: 650000 | J62: 650000 | K62: 7800000 | L62: =-H62+J62 -> -138604.6503
B63: 4 | C63: =((K62-D62)*($D$51)) -> 138604.6503 | D63: 650000 | E63: 788604.6503 | F63: 0 | G63: 7938604.65 | H63: 788604.6503 | I63: 650000 | J63: 650000 | K63: 7800000 | L63: =-H63+J63 -> -138604.6503
B64: 5 | C64: 138604.6503 | D64: 650000 | E64: 788604.6503 | F64: 0 | G64: 7938604.65 | H64: 788604.6503 | I64: 650000 | J64: 650000 | K64: 7800000 | L64: -138604.6503
B65: 6 | C65: 138604.6503 | D65: 650000 | E65: 788604.6503 | F65: 0 | G65: 7938604.65 | H65: 788604.6503 | I65: 650000 | J65: 650000 | K65: 7800000 | L65: -138604.6503
B66: 7 | C66: 138604.6503 | D66: 650000 | E66: 788604.6503
B67: 8 | D67: 650000
B68: 9 | D68: 650000
B69: 10 | D69: 650000
B70: 11 | D70: 650000
B71: 12 | D71: 650000 | H71: =G71 ->  | J71: 0
B75: Intereses | D75: =SUM(C60:C71) -> 
B76: Cuota de manejo | D76: =SUM(F60:F71) -> 
B77: VTUA pesos | D77: =SUM(D75:D76) -> 
B78: VTUA % | D78: =IRR(L59:L71) ->  | E78: =+((1+D78)^12)-1 -> 

Sheet Sobregiro (hidden)
B1: Valor Total Unificado
B2: Sobregiro
B3: Cifras en Pesos
B5: Producto | D5: Sobregiro
B7: Cupo de seis (2) Salarios mínimos mensuales legales vigentes (SMMLV)
B9: Tasa | D9: ='Base Activos'!D41 -> 0.2591
D10: =(NOMINAL(D9,12))/12 -> 0.01938526578
B11: Cupo | D11: =SMLV*2 -> 2600000
B12: Plazo diferido | D12: ='Base Activos'!D42 -> 1.5
B15: Compra mes | C15: Intereses | D15: Abono a capital | E15: Cuota del crédito | F15: Cuota de Manejo | G15: Pago Total | H15: Pago efectivamente realizado | I15: Nuevo Cupo Disponible | J15: Nuevos consumos | K15: Saldo capital | L15: Flujos
B16: 0 | J16: =D11 -> 2600000 | K16: =J16 -> 2600000 | L16: =-H16+J16 -> 2600000
B17: 1 | C17: 0 | D17: =($D$11/$D$12) -> 1733333.333 | E17: =+C17+D17 -> 1733333.333 | G17: =K17+C17+F17 -> 2600000 | H17: =E17+F17 -> 1733333.333 | I17: =$D$11-($D$11-(H17-(F17+C17))) -> 1733333.333 | J17: =I17 -> 1733333.333 | K17: =D11 -> 2600000 | L17: =-H17+J17 -> 0
B18: 2 | C18: =(K17*D10+(K17-E17)*(D10)) -> 67202.2547 | D18: =K17 -> 2600000 | E18: =+C18+D18 -> 2667202.255 | G18: =K17+C18+F18 -> 2667202.255 | H18: =E18+F18 -> 2667202.255 | I18: =$D$11-($D$11-(H18-(F18+C18))) -> 2600000 | J18: 0 | K18: =((K17+J18)-(H18-(F18+C18))) -> 0 | L18: =-H18+J18 -> -2667202.255
B22: Intereses | D22: =-SUM(C17:C18) -> -67202.2547
B23: Cuota de manejo | D23: =-SUM(F17:F18) -> 0
B24: VTUA pesos | D24: =SUM(D22:D23) -> -67202.2547
B25: VTUA % | D25: =IRR(L16:L18) -> 0.01284106406 | E25: =+((1+D25)^12)-1 -> 0.1654552695

Sheet VTU
C2: Conoce el Valor Total Unificado (VTU) | K2: Volver
B5: 1 | C5: Qué es
C7: Un indicador que le permitirá a nuestros clientes:
C8: Conocer la estimación de los costos e ingresos asociados a la tenencia de productos del banco durante un plazo proyectado.
C9: Comparar de forma más estandarizada la oferta de las instituciones financieras.
B11: 2 | C11: Cuál es la norma que lo soporta
C13: A partir del Decreto 1854 de 2015, que modifica el Decreto 2555 de 2010, basado en el principio de transparencia e información cierta, suficiente y oportuna por parte de las entidades vigiladas por la Superintendencia Financiera de Colombia.
B16: 3 | C16: A quién se le debe informar
C18: A todo cliente potencial:
C19: Toda persona natural o jurídica que demuestre interés en la adquisición de un producto.
C20: Puede ser un cliente del banco que desea adquirir un producto nuevo.
B22: 4 | C22: Cómo y cuándo se debe entregar la información
C24: Basta con que se comunique el cliente potencial por cualquiera de nuestros canales disponibles para indicarle el VTU del producto en el que está interesado.
C25: Se debe entregar esta información independientemente a que haya o no contratación del producto.
C26: Documento físico o información telefónica dependiendo el canal.
B28: 5 | C28: Cómo se calcula y cuál es el resultado
C30: Es el resultado de la proyección de los ingresos y egresos mensuales del cliente potencial asociados al producto en el que está interesado.
B39: 6 | C39: Cuáles son los productos a los cuales se les calcula el indicador
C41: Activos | E41: Pasivos
C42: Créditos de vivienda | E42: CDT
C43: Leasing habitacional | E43: Cuentas de ahorro
C44: Créditos de consumo | E44: Cuentas corrientes
C45: Créditos comerciales

Sheet Vivienda
B1: Valor Total Unificado
B2: Vivienda
B3: Cifras en Pesos | F3: =VLOOKUP(D5,'Base Activos'!$C$72:$E$73,2,0) ->  | H3: volver
B4: Tipo de cliente | D4: ='Base Activos'!C66 -> Cliente externo | F4: =IFERROR(VLOOKUP(D4,'Base Activos'!$G$72:$H$73,2,0),0) -> 1 | L4: 1 | Q4: Adquisición de vivienda nueva o usada
B5: Producto | D5: Crédito de Leasing Habitacional | F5: Línea | H5: Recolocación | Q5: Adquisición de Vivienda CxI | T5: Crédito Hipotecario
B6: Valor inmueble | D6: 0 | F6: Seguro de Vida | H6: =IF(C31="","",'Base Activos'!J58) ->  | J6: ='Base Activos'!J55 -> 0 | Q6: Cesión de contratos | T6: Crédito de Leasing Habitacional
B7: Valor inicial del crédito | D7: 0 | F7: Número de asegurados | H7: 1 | Q7: Adición por mejoras
Q8: Recolocación
B9: Tasa de interés Efectivo Anual (EA) | D9: 0.01 | F9: Seguro del Inmueble (IVA incluido) | H9: =IF(J9=1,0,IF(ValidacionCalculo=0,0,IF(D6=0,"0",'Base Activos'!M67/12))) -> 0 | J9: ='Base Activos'!M55 -> 0 | Q9: Leaseback
B10: Tasa de interés mes vencido (EA) | D10: =(1+D9)^(1/12)-1 -> 0.0008295381143 | F10: Valor cuota sin seguros | H10: =IF(ValidacionCalculo=0,0,C31+D31) ->  | Q10: Construcción de vivienda individual
B11: Plazo inicial | D11: 1 | K11: Crédito/ValorInmueble | L11: =VLOOKUP(Vivienda!$H$5,IF('Base Activos'!B67=1,Hipotecario_Plazo_Monto,IF('Base Activos'!B67=2, Leasing_Plazo_Monto,0)),2,0)*D6 ->  | Q11: Compra de cartera
B12: Sistema de amortización | D12: Cuota Fija | F12: Tarifa aplicada mensual Seguro Inmueble (IVA incluido) | H12: =+H9 -> 0 | K12: Plazo | L12: =VLOOKUP(Vivienda!$H$5,IF('Base Activos'!B67=1,Hipotecario_Plazo_Monto,IF('Base Activos'!B67=2, Leasing_Plazo_Monto,0)),3,0) ->  | Q12: Remodelación vivienda
B13: Opción de Compra % | D13: 0.01 | F13: Departamento | Q13: Otros usos
B14: Opción de Compra $ | D14: =D13*D7 -> 0 | F14: Zona | H14: =+VLOOKUP(H13,ZonasHipo!$C$3:$F$1130,2,0) -> 
B16: =IF(OR(D6=0,D7=0,D9=0%,D11=0,D13="",H7=0,H13=""),1,0) -> 1
B18: Valores VTUA
B20: Pago total capital | D20: =IF(ValidacionCalculo=0,0,SUM(C31:C270)) ->  | F20: Pago total intereses | H20: =IF(ValidacionCalculo=0,0,SUM(D31:D270)) -> 0
B21: Valor avalúo (IVA incluido) | D21: =IF(ValidacionCalculo=0,0,'Base Activos'!G59) ->  | F21: Valor estudio de títulos (IVA incluido) | H21: =IF(ValidacionCalculo=0,0,'Base Activos'!G60) -> 
B22: Estudio de crédito (IVA incluido) | D22: =IF(ValidacionCalculo=0,0,'Base Activos'!G61) -> 0 | F22: Pago total seguro de vida | H22: =IF(ValidacionCalculo=0,0,SUM(F31:F270)) -> 
B23: Pago total seguro del inmueble | D23: =IF(ValidacionCalculo=0,0,SUM(G31:G270)) ->  | F23: Pago total crédito | H23: =SUM(D20+H20+D21+H21+D22+H22+D23) -> 
D24: Mensual | E24: Efectiva anual
B25: VTUA Porcentual | D25: =IF(ValidacionCalculo=0,0,IRR(K30:K270)) ->  | E25: =((1+D25)^12)-1 -> 
B27: Amortización
B29: Cuota Nro. | C29: Capital | D29: Interes Total | E29: k + i | F29: Seguro Vida | G29: Seguro del Inmueble | H29: Valor de la Cuota | I29: Valor de la Cuota con Cobertura | J29: Saldo Capital | K29: Flujo
B30: 0 | C30: 0 | J30: =D7 -> 0 | K30: =D20 -> 
B31: =IF(D11>0,1,"") -> 1 | C31: =IF(B31="","",E31-D31) ->  | D31: =IF(B31="","",i*J30) -> 0 | E31: =IF(B31="","",IF($F$3=1,PMT(i,$D$11,-$J$30),PMT(i,$D$11,-$J$30,$D$14))) ->  | F31: =IF($J$6=1,0,IF(B31<$D$11+1,IF(C31="","",IF($D$9>='Base Activos'!$J$57,((J31+C31)/1000000)*'Base Activos'!$J$58,((J31+C31)/1000000)*'Base Activos'!$J$58))*$H$7,"")) ->  | G31: =IF(C31="","",$H$9) ->  | H31: =IF(ISERROR(C31+D31+F31+G31),"",C31+D31+F31+G31) ->  | I31: =IF(ISERROR(C31+D31+F31+G31-#REF!),"",C31+D31+F31+G31-#REF!) ->  | J31: =IF(ISERROR(D7-C31),"",D7-C31) ->  | K31: =IF(B31<=$D$11,-H31,"")-D21-D22-H21 -> 
B32: =IF(B31<$D$11,B31+1,"") ->  | C32: =IF(B32="","",E32-D32) ->  | D32: =IF(B32="","",i*J31) ->  | F32: =IF($J$6=1,0,IF(B32<$D$11+1,IF(C32="","",IF($D$9>='Base Activos'!$J$57,((J32+C32)/1000000)*'Base Activos'!$J$58,((J32+C32)/1000000)*'Base Activos'!$J$58))*$H$7,"")) ->  | G32: =IF($AA$6=1,0,IF(C32="","",$H$9)) ->  | H32: =IF(ISERROR(C32+D32+F32+G32),"",C32+D32+F32+G32) ->  | I32: =IF(ISERROR(C32+D32+F32+G32-#REF!),"",C32+D32+F32+G32-#REF!) ->  | J32: =IF(C32="","",J31-C32) ->  | K32: =IF(B32<=$D$11,-H32,"") -> 
B33: =IF(B32<$D$11,B32+1,"") ->  | C33: =IF(B33="","",E33-D33) ->  | F33: =IF($J$6=1,0,IF(B33<$D$11+1,IF(C33="","",IF($D$9>='Base Activos'!$J$57,((J33+C33)/1000000)*'Base Activos'!$J$58,((J33+C33)/1000000)*'Base Activos'!$J$58))*$H$7,"")) ->  | G33: =IF($AA$6=1,0,IF(C33="","",$H$9)) ->  | H33: =IF(ISERROR(C33+D33+F33+G33),"",C33+D33+F33+G33) ->  | J33: =IF(C33="","",J32-C33) ->  | K33: =IF(B33<=$D$11,-H33,"") -> 
F34: =IF($J$6=1,0,IF(B34<$D$11+1,IF(C34="","",IF($D$9>='Base Activos'!$J$57,((J34+C34)/1000000)*'Base Activos'!$J$58,((J34+C34)/1000000)*'Base Activos'!$J$58))*$H$7,"")) -> 
F35: =IF($J$6=1,0,IF(B35<$D$11+1,IF(C35="","",IF($D$9>='Base Activos'!$J$57,((J35+C35)/1000000)*'Base Activos'!$J$58,((J35+C35)/1000000)*'Base Activos'!$J$58))*$H$7,"")) -> 
F36: =IF($J$6=1,0,IF(B36<$D$11+1,IF(C36="","",IF($D$9>='Base Activos'!$J$57,((J36+C36)/1000000)*'Base Activos'!$J$58,((J36+C36)/1000000)*'Base Activos'!$J$58))*$H$7,"")) -> 
F37: =IF($J$6=1,0,IF(B37<$D$11+1,IF(C37="","",IF($D$9>='Base Activos'!$J$57,((J37+C37)/1000000)*'Base Activos'!$J$58,((J37+C37)/1000000)*'Base Activos'!$J$58))*$H$7,"")) -> 
F38: =IF($J$6=1,0,IF(B38<$D$11+1,IF(C38="","",IF($D$9>='Base Activos'!$J$57,((J38+C38)/1000000)*'Base Activos'!$J$58,((J38+C38)/1000000)*'Base Activos'!$J$58))*$H$7,"")) -> 
F39: =IF($J$6=1,0,IF(B39<$D$11+1,IF(C39="","",IF($D$9>='Base Activos'!$J$57,((J39+C39)/1000000)*'Base Activos'!$J$58,((J39+C39)/1000000)*'Base Activos'!$J$58))*$H$7,"")) -> 
F40: =IF($J$6=1,0,IF(B40<$D$11+1,IF(C40="","",IF($D$9>='Base Activos'!$J$57,((J40+C40)/1000000)*'Base Activos'!$J$58,((J40+C40)/1000000)*'Base Activos'!$J$58))*$H$7,"")) -> 
F41: =IF($J$6=1,0,IF(B41<$D$11+1,IF(C41="","",IF($D$9>='Base Activos'!$J$57,((J41+C41)/1000000)*'Base Activos'!$J$58,((J41+C41)/1000000)*'Base Activos'!$J$58))*$H$7,"")) -> 
F42: =IF($J$6=1,0,IF(B42<$D$11+1,IF(C42="","",IF($D$9>='Base Activos'!$J$57,((J42+C42)/1000000)*'Base Activos'!$J$58,((J42+C42)/1000000)*'Base Activos'!$J$58))*$H$7,"")) -> 
F43: =IF($J$6=1,0,IF(B43<$D$11+1,IF(C43="","",IF($D$9>='Base Activos'!$J$57,((J43+C43)/1000000)*'Base Activos'!$J$58,((J43+C43)/1000000)*'Base Activos'!$J$58))*$H$7,"")) -> 
F44: =IF($J$6=1,0,IF(B44<$D$11+1,IF(C44="","",IF($D$9>='Base Activos'!$J$57,((J44+C44)/1000000)*'Base Activos'!$J$58,((J44+C44)/1000000)*'Base Activos'!$J$58))*$H$7,"")) -> 
F45: =IF($J$6=1,0,IF(B45<$D$11+1,IF(C45="","",IF($D$9>='Base Activos'!$J$57,((J45+C45)/1000000)*'Base Activos'!$J$58,((J45+C45)/1000000)*'Base Activos'!$J$58))*$H$7,"")) -> 
F46: =IF($J$6=1,0,IF(B46<$D$11+1,IF(C46="","",IF($D$9>='Base Activos'!$J$57,((J46+C46)/1000000)*'Base Activos'!$J$58,((J46+C46)/1000000)*'Base Activos'!$J$58))*$H$7,"")) -> 
F47: =IF($J$6=1,0,IF(B47<$D$11+1,IF(C47="","",IF($D$9>='Base Activos'!$J$57,((J47+C47)/1000000)*'Base Activos'!$J$58,((J47+C47)/1000000)*'Base Activos'!$J$58))*$H$7,"")) -> 
F48: =IF($J$6=1,0,IF(B48<$D$11+1,IF(C48="","",IF($D$9>='Base Activos'!$J$57,((J48+C48)/1000000)*'Base Activos'!$J$58,((J48+C48)/1000000)*'Base Activos'!$J$58))*$H$7,"")) -> 
F49: =IF($J$6=1,0,IF(B49<$D$11+1,IF(C49="","",IF($D$9>='Base Activos'!$J$57,((J49+C49)/1000000)*'Base Activos'!$J$58,((J49+C49)/1000000)*'Base Activos'!$J$58))*$H$7,"")) -> 
F50: =IF($J$6=1,0,IF(B50<$D$11+1,IF(C50="","",IF($D$9>='Base Activos'!$J$57,((J50+C50)/1000000)*'Base Activos'!$J$58,((J50+C50)/1000000)*'Base Activos'!$J$58))*$H$7,"")) -> 
F51: =IF($J$6=1,0,IF(B51<$D$11+1,IF(C51="","",IF($D$9>='Base Activos'!$J$57,((J51+C51)/1000000)*'Base Activos'!$J$58,((J51+C51)/1000000)*'Base Activos'!$J$58))*$H$7,"")) -> 
F52: =IF($J$6=1,0,IF(B52<$D$11+1,IF(C52="","",IF($D$9>='Base Activos'!$J$57,((J52+C52)/1000000)*'Base Activos'!$J$58,((J52+C52)/1000000)*'Base Activos'!$J$58))*$H$7,"")) -> 
F53: =IF($J$6=1,0,IF(B53<$D$11+1,IF(C53="","",IF($D$9>='Base Activos'!$J$57,((J53+C53)/1000000)*'Base Activos'!$J$58,((J53+C53)/1000000)*'Base Activos'!$J$58))*$H$7,"")) -> 
F54: =IF($J$6=1,0,IF(B54<$D$11+1,IF(C54="","",IF($D$9>='Base Activos'!$J$57,((J54+C54)/1000000)*'Base Activos'!$J$58,((J54+C54)/1000000)*'Base Activos'!$J$58))*$H$7,"")) -> 
F55: =IF($J$6=1,0,IF(B55<$D$11+1,IF(C55="","",IF($D$9>='Base Activos'!$J$57,((J55+C55)/1000000)*'Base Activos'!$J$58,((J55+C55)/1000000)*'Base Activos'!$J$58))*$H$7,"")) -> 
F56: =IF($J$6=1,0,IF(B56<$D$11+1,IF(C56="","",IF($D$9>='Base Activos'!$J$57,((J56+C56)/1000000)*'Base Activos'!$J$58,((J56+C56)/1000000)*'Base Activos'!$J$58))*$H$7,"")) -> 
F57: =IF($J$6=1,0,IF(B57<$D$11+1,IF(C57="","",IF($D$9>='Base Activos'!$J$57,((J57+C57)/1000000)*'Base Activos'!$J$58,((J57+C57)/1000000)*'Base Activos'!$J$58))*$H$7,"")) -> 
F58: =IF($J$6=1,0,IF(B58<$D$11+1,IF(C58="","",IF($D$9>='Base Activos'!$J$57,((J58+C58)/1000000)*'Base Activos'!$J$58,((J58+C58)/1000000)*'Base Activos'!$J$58))*$H$7,"")) -> 
F59: =IF($J$6=1,0,IF(B59<$D$11+1,IF(C59="","",IF($D$9>='Base Activos'!$J$57,((J59+C59)/1000000)*'Base Activos'!$J$58,((J59+C59)/1000000)*'Base Activos'!$J$58))*$H$7,"")) -> 
F60: =IF($J$6=1,0,IF(B60<$D$11+1,IF(C60="","",IF($D$9>='Base Activos'!$J$57,((J60+C60)/1000000)*'Base Activos'!$J$58,((J60+C60)/1000000)*'Base Activos'!$J$58))*$H$7,"")) -> 
F61: =IF($J$6=1,0,IF(B61<$D$11+1,IF(C61="","",IF($D$9>='Base Activos'!$J$57,((J61+C61)/1000000)*'Base Activos'!$J$58,((J61+C61)/1000000)*'Base Activos'!$J$58))*$H$7,"")) -> 
F62: =IF($J$6=1,0,IF(B62<$D$11+1,IF(C62="","",IF($D$9>='Base Activos'!$J$57,((J62+C62)/1000000)*'Base Activos'!$J$58,((J62+C62)/1000000)*'Base Activos'!$J$58))*$H$7,"")) -> 
F63: =IF($J$6=1,0,IF(B63<$D$11+1,IF(C63="","",IF($D$9>='Base Activos'!$J$57,((J63+C63)/1000000)*'Base Activos'!$J$58,((J63+C63)/1000000)*'Base Activos'!$J$58))*$H$7,"")) -> 
F64: =IF($J$6=1,0,IF(B64<$D$11+1,IF(C64="","",IF($D$9>='Base Activos'!$J$57,((J64+C64)/1000000)*'Base Activos'!$J$58,((J64+C64)/1000000)*'Base Activos'!$J$58))*$H$7,"")) -> 
F65: =IF($J$6=1,0,IF(B65<$D$11+1,IF(C65="","",IF($D$9>='Base Activos'!$J$57,((J65+C65)/1000000)*'Base Activos'!$J$58,((J65+C65)/1000000)*'Base Activos'!$J$58))*$H$7,"")) -> 
F66: =IF($J$6=1,0,IF(B66<$D$11+1,IF(C66="","",IF($D$9>='Base Activos'!$J$57,((J66+C66)/1000000)*'Base Activos'!$J$58,((J66+C66)/1000000)*'Base Activos'!$J$58))*$H$7,"")) -> 
F67: =IF($J$6=1,0,IF(B67<$D$11+1,IF(C67="","",IF($D$9>='Base Activos'!$J$57,((J67+C67)/1000000)*'Base Activos'!$J$58,((J67+C67)/1000000)*'Base Activos'!$J$58))*$H$7,"")) -> 
F68: =IF($J$6=1,0,IF(B68<$D$11+1,IF(C68="","",IF($D$9>='Base Activos'!$J$57,((J68+C68)/1000000)*'Base Activos'!$J$58,((J68+C68)/1000000)*'Base Activos'!$J$58))*$H$7,"")) -> 
F69: =IF($J$6=1,0,IF(B69<$D$11+1,IF(C69="","",IF($D$9>='Base Activos'!$J$57,((J69+C69)/1000000)*'Base Activos'!$J$58,((J69+C69)/1000000)*'Base Activos'!$J$58))*$H$7,"")) -> 
F70: =IF($J$6=1,0,IF(B70<$D$11+1,IF(C70="","",IF($D$9>='Base Activos'!$J$57,((J70+C70)/1000000)*'Base Activos'!$J$58,((J70+C70)/1000000)*'Base Activos'!$J$58))*$H$7,"")) -> 
F71: =IF($J$6=1,0,IF(B71<$D$11+1,IF(C71="","",IF($D$9>='Base Activos'!$J$57,((J71+C71)/1000000)*'Base Activos'!$J$58,((J71+C71)/1000000)*'Base Activos'!$J$58))*$H$7,"")) -> 
F72: =IF($J$6=1,0,IF(B72<$D$11+1,IF(C72="","",IF($D$9>='Base Activos'!$J$57,((J72+C72)/1000000)*'Base Activos'!$J$58,((J72+C72)/1000000)*'Base Activos'!$J$58))*$H$7,"")) -> 
F73: =IF($J$6=1,0,IF(B73<$D$11+1,IF(C73="","",IF($D$9>='Base Activos'!$J$57,((J73+C73)/1000000)*'Base Activos'!$J$58,((J73+C73)/1000000)*'Base Activos'!$J$58))*$H$7,"")) -> 
F74: =IF($J$6=1,0,IF(B74<$D$11+1,IF(C74="","",IF($D$9>='Base Activos'!$J$57,((J74+C74)/1000000)*'Base Activos'!$J$58,((J74+C74)/1000000)*'Base Activos'!$J$58))*$H$7,"")) -> 
F75: =IF($J$6=1,0,IF(B75<$D$11+1,IF(C75="","",IF($D$9>='Base Activos'!$J$57,((J75+C75)/1000000)*'Base Activos'!$J$58,((J75+C75)/1000000)*'Base Activos'!$J$58))*$H$7,"")) -> 
F76: =IF($J$6=1,0,IF(B76<$D$11+1,IF(C76="","",IF($D$9>='Base Activos'!$J$57,((J76+C76)/1000000)*'Base Activos'!$J$58,((J76+C76)/1000000)*'Base Activos'!$J$58))*$H$7,"")) -> 
F77: =IF($J$6=1,0,IF(B77<$D$11+1,IF(C77="","",IF($D$9>='Base Activos'!$J$57,((J77+C77)/1000000)*'Base Activos'!$J$58,((J77+C77)/1000000)*'Base Activos'!$J$58))*$H$7,"")) -> 
F78: =IF($J$6=1,0,IF(B78<$D$11+1,IF(C78="","",IF($D$9>='Base Activos'!$J$57,((J78+C78)/1000000)*'Base Activos'!$J$58,((J78+C78)/1000000)*'Base Activos'!$J$58))*$H$7,"")) -> 
F79: =IF($J$6=1,0,IF(B79<$D$11+1,IF(C79="","",IF($D$9>='Base Activos'!$J$57,((J79+C79)/1000000)*'Base Activos'!$J$58,((J79+C79)/1000000)*'Base Activos'!$J$58))*$H$7,"")) -> 
F80: =IF($J$6=1,0,IF(B80<$D$11+1,IF(C80="","",IF($D$9>='Base Activos'!$J$57,((J80+C80)/1000000)*'Base Activos'!$J$58,((J80+C80)/1000000)*'Base Activos'!$J$58))*$H$7,"")) -> 
F81: =IF($J$6=1,0,IF(B81<$D$11+1,IF(C81="","",IF($D$9>='Base Activos'!$J$57,((J81+C81)/1000000)*'Base Activos'!$J$58,((J81+C81)/1000000)*'Base Activos'!$J$58))*$H$7,"")) -> 
F82: =IF($J$6=1,0,IF(B82<$D$11+1,IF(C82="","",IF($D$9>='Base Activos'!$J$57,((J82+C82)/1000000)*'Base Activos'!$J$58,((J82+C82)/1000000)*'Base Activos'!$J$58))*$H$7,"")) -> 
F83: =IF($J$6=1,0,IF(B83<$D$11+1,IF(C83="","",IF($D$9>='Base Activos'!$J$57,((J83+C83)/1000000)*'Base Activos'!$J$58,((J83+C83)/1000000)*'Base Activos'!$J$58))*$H$7,"")) -> 
F84: =IF($J$6=1,0,IF(B84<$D$11+1,IF(C84="","",IF($D$9>='Base Activos'!$J$57,((J84+C84)/1000000)*'Base Activos'!$J$58,((J84+C84)/1000000)*'Base Activos'!$J$58))*$H$7,"")) -> 
F85: =IF($J$6=1,0,IF(B85<$D$11+1,IF(C85="","",IF($D$9>='Base Activos'!$J$57,((J85+C85)/1000000)*'Base Activos'!$J$58,((J85+C85)/1000000)*'Base Activos'!$J$58))*$H$7,"")) -> 
F86: =IF($J$6=1,0,IF(B86<$D$11+1,IF(C86="","",IF($D$9>='Base Activos'!$J$57,((J86+C86)/1000000)*'Base Activos'!$J$58,((J86+C86)/1000000)*'Base Activos'!$J$58))*$H$7,"")) -> 
F87: =IF($J$6=1,0,IF(B87<$D$11+1,IF(C87="","",IF($D$9>='Base Activos'!$J$57,((J87+C87)/1000000)*'Base Activos'!$J$58,((J87+C87)/1000000)*'Base Activos'!$J$58))*$H$7,"")) -> 
F88: =IF($J$6=1,0,IF(B88<$D$11+1,IF(C88="","",IF($D$9>='Base Activos'!$J$57,((J88+C88)/1000000)*'Base Activos'!$J$58,((J88+C88)/1000000)*'Base Activos'!$J$58))*$H$7,"")) -> 
F89: =IF($J$6=1,0,IF(B89<$D$11+1,IF(C89="","",IF($D$9>='Base Activos'!$J$57,((J89+C89)/1000000)*'Base Activos'!$J$58,((J89+C89)/1000000)*'Base Activos'!$J$58))*$H$7,"")) -> 
F90: =IF($J$6=1,0,IF(B90<$D$11+1,IF(C90="","",IF($D$9>='Base Activos'!$J$57,((J90+C90)/1000000)*'Base Activos'!$J$58,((J90+C90)/1000000)*'Base Activos'!$J$58))*$H$7,"")) -> 
F91: =IF($J$6=1,0,IF(B91<$D$11+1,IF(C91="","",IF($D$9>='Base Activos'!$J$57,((J91+C91)/1000000)*'Base Activos'!$J$58,((J91+C91)/1000000)*'Base Activos'!$J$58))*$H$7,"")) -> 
F92: =IF($J$6=1,0,IF(B92<$D$11+1,IF(C92="","",IF($D$9>='Base Activos'!$J$57,((J92+C92)/1000000)*'Base Activos'!$J$58,((J92+C92)/1000000)*'Base Activos'!$J$58))*$H$7,"")) -> 
F93: =IF($J$6=1,0,IF(B93<$D$11+1,IF(C93="","",IF($D$9>='Base Activos'!$J$57,((J93+C93)/1000000)*'Base Activos'!$J$58,((J93+C93)/1000000)*'Base Activos'!$J$58))*$H$7,"")) -> 
F94: =IF($J$6=1,0,IF(B94<$D$11+1,IF(C94="","",IF($D$9>='Base Activos'!$J$57,((J94+C94)/1000000)*'Base Activos'!$J$58,((J94+C94)/1000000)*'Base Activos'!$J$58))*$H$7,"")) -> 
E95: =IF(B95="","",IF($F$3=1,PMT(i,$D$11,-$J$30),PMT(i,$D$11,-$J$30,$D$14))) ->  | F95: =IF($J$6=1,0,IF(B95<$D$11+1,IF(C95="","",IF($D$9>='Base Activos'!$J$57,((J95+C95)/1000000)*'Base Activos'!$J$58,((J95+C95)/1000000)*'Base Activos'!$J$58))*$H$7,"")) -> 
D96: =IF(B96="","",i*J95) ->  | F96: =IF($J$6=1,0,IF(B96<$D$11+1,IF(C96="","",IF($D$9>='Base Activos'!$J$57,((J96+C96)/1000000)*'Base Activos'!$J$58,((J96+C96)/1000000)*'Base Activos'!$J$58))*$H$7,"")) -> 
B97: =IF(B96<$D$11,B96+1,"") ->  | C97: =IF(B97="","",E97-D97) ->  | F97: =IF($J$6=1,0,IF(B97<$D$11+1,IF(C97="","",IF($D$9>='Base Activos'!$J$57,((J97+C97)/1000000)*'Base Activos'!$J$58,((J97+C97)/1000000)*'Base Activos'!$J$58))*$H$7,"")) ->  | G97: =IF($AA$6=1,0,IF(C97="","",$H$9)) ->  | H97: =IF(ISERROR(C97+D97+F97+G97),"",C97+D97+F97+G97) ->  | J97: =IF(C97="","",J96-C97) ->  | K97: =IF(B97<=$D$11,-H97,"") -> 
F98: =IF($J$6=1,0,IF(B98<$D$11+1,IF(C98="","",IF($D$9>='Base Activos'!$J$57,((J98+C98)/1000000)*'Base Activos'!$J$58,((J98+C98)/1000000)*'Base Activos'!$J$58))*$H$7,"")) -> 
F99: =IF($J$6=1,0,IF(B99<$D$11+1,IF(C99="","",IF($D$9>='Base Activos'!$J$57,((J99+C99)/1000000)*'Base Activos'!$J$58,((J99+C99)/1000000)*'Base Activos'!$J$58))*$H$7,"")) -> 
F100: =IF($J$6=1,0,IF(B100<$D$11+1,IF(C100="","",IF($D$9>='Base Activos'!$J$57,((J100+C100)/1000000)*'Base Activos'!$J$58,((J100+C100)/1000000)*'Base Activos'!$J$58))*$H$7,"")) -> 
F101: =IF($J$6=1,0,IF(B101<$D$11+1,IF(C101="","",IF($D$9>='Base Activos'!$J$57,((J101+C101)/1000000)*'Base Activos'!$J$58,((J101+C101)/1000000)*'Base Activos'!$J$58))*$H$7,"")) -> 
F102: =IF($J$6=1,0,IF(B102<$D$11+1,IF(C102="","",IF($D$9>='Base Activos'!$J$57,((J102+C102)/1000000)*'Base Activos'!$J$58,((J102+C102)/1000000)*'Base Activos'!$J$58))*$H$7,"")) -> 
F103: =IF($J$6=1,0,IF(B103<$D$11+1,IF(C103="","",IF($D$9>='Base Activos'!$J$57,((J103+C103)/1000000)*'Base Activos'!$J$58,((J103+C103)/1000000)*'Base Activos'!$J$58))*$H$7,"")) -> 
F104: =IF($J$6=1,0,IF(B104<$D$11+1,IF(C104="","",IF($D$9>='Base Activos'!$J$57,((J104+C104)/1000000)*'Base Activos'!$J$58,((J104+C104)/1000000)*'Base Activos'!$J$58))*$H$7,"")) -> 
F105: =IF($J$6=1,0,IF(B105<$D$11+1,IF(C105="","",IF($D$9>='Base Activos'!$J$57,((J105+C105)/1000000)*'Base Activos'!$J$58,((J105+C105)/1000000)*'Base Activos'!$J$58))*$H$7,"")) -> 
F106: =IF($J$6=1,0,IF(B106<$D$11+1,IF(C106="","",IF($D$9>='Base Activos'!$J$57,((J106+C106)/1000000)*'Base Activos'!$J$58,((J106+C106)/1000000)*'Base Activos'!$J$58))*$H$7,"")) -> 
F107: =IF($J$6=1,0,IF(B107<$D$11+1,IF(C107="","",IF($D$9>='Base Activos'!$J$57,((J107+C107)/1000000)*'Base Activos'!$J$58,((J107+C107)/1000000)*'Base Activos'!$J$58))*$H$7,"")) -> 
F108: =IF($J$6=1,0,IF(B108<$D$11+1,IF(C108="","",IF($D$9>='Base Activos'!$J$57,((J108+C108)/1000000)*'Base Activos'!$J$58,((J108+C108)/1000000)*'Base Activos'!$J$58))*$H$7,"")) -> 
F109: =IF($J$6=1,0,IF(B109<$D$11+1,IF(C109="","",IF($D$9>='Base Activos'!$J$57,((J109+C109)/1000000)*'Base Activos'!$J$58,((J109+C109)/1000000)*'Base Activos'!$J$58))*$H$7,"")) -> 
F110: =IF($J$6=1,0,IF(B110<$D$11+1,IF(C110="","",IF($D$9>='Base Activos'!$J$57,((J110+C110)/1000000)*'Base Activos'!$J$58,((J110+C110)/1000000)*'Base Activos'!$J$58))*$H$7,"")) -> 
F111: =IF($J$6=1,0,IF(B111<$D$11+1,IF(C111="","",IF($D$9>='Base Activos'!$J$57,((J111+C111)/1000000)*'Base Activos'!$J$58,((J111+C111)/1000000)*'Base Activos'!$J$58))*$H$7,"")) -> 
F112: =IF($J$6=1,0,IF(B112<$D$11+1,IF(C112="","",IF($D$9>='Base Activos'!$J$57,((J112+C112)/1000000)*'Base Activos'!$J$58,((J112+C112)/1000000)*'Base Activos'!$J$58))*$H$7,"")) -> 
F113: =IF($J$6=1,0,IF(B113<$D$11+1,IF(C113="","",IF($D$9>='Base Activos'!$J$57,((J113+C113)/1000000)*'Base Activos'!$J$58,((J113+C113)/1000000)*'Base Activos'!$J$58))*$H$7,"")) -> 
F114: =IF($J$6=1,0,IF(B114<$D$11+1,IF(C114="","",IF($D$9>='Base Activos'!$J$57,((J114+C114)/1000000)*'Base Activos'!$J$58,((J114+C114)/1000000)*'Base Activos'!$J$58))*$H$7,"")) -> 
F115: =IF($J$6=1,0,IF(B115<$D$11+1,IF(C115="","",IF($D$9>='Base Activos'!$J$57,((J115+C115)/1000000)*'Base Activos'!$J$58,((J115+C115)/1000000)*'Base Activos'!$J$58))*$H$7,"")) -> 
F116: =IF($J$6=1,0,IF(B116<$D$11+1,IF(C116="","",IF($D$9>='Base Activos'!$J$57,((J116+C116)/1000000)*'Base Activos'!$J$58,((J116+C116)/1000000)*'Base Activos'!$J$58))*$H$7,"")) -> 
F117: =IF($J$6=1,0,IF(B117<$D$11+1,IF(C117="","",IF($D$9>='Base Activos'!$J$57,((J117+C117)/1000000)*'Base Activos'!$J$58,((J117+C117)/1000000)*'Base Activos'!$J$58))*$H$7,"")) -> 
F118: =IF($J$6=1,0,IF(B118<$D$11+1,IF(C118="","",IF($D$9>='Base Activos'!$J$57,((J118+C118)/1000000)*'Base Activos'!$J$58,((J118+C118)/1000000)*'Base Activos'!$J$58))*$H$7,"")) -> 
F119: =IF($J$6=1,0,IF(B119<$D$11+1,IF(C119="","",IF($D$9>='Base Activos'!$J$57,((J119+C119)/1000000)*'Base Activos'!$J$58,((J119+C119)/1000000)*'Base Activos'!$J$58))*$H$7,"")) -> 
F120: =IF($J$6=1,0,IF(B120<$D$11+1,IF(C120="","",IF($D$9>='Base Activos'!$J$57,((J120+C120)/1000000)*'Base Activos'!$J$58,((J120+C120)/1000000)*'Base Activos'!$J$58))*$H$7,"")) -> 
F121: =IF($J$6=1,0,IF(B121<$D$11+1,IF(C121="","",IF($D$9>='Base Activos'!$J$57,((J121+C121)/1000000)*'Base Activos'!$J$58,((J121+C121)/1000000)*'Base Activos'!$J$58))*$H$7,"")) -> 
F122: =IF($J$6=1,0,IF(B122<$D$11+1,IF(C122="","",IF($D$9>='Base Activos'!$J$57,((J122+C122)/1000000)*'Base Activos'!$J$58,((J122+C122)/1000000)*'Base Activos'!$J$58))*$H$7,"")) -> 
F123: =IF($J$6=1,0,IF(B123<$D$11+1,IF(C123="","",IF($D$9>='Base Activos'!$J$57,((J123+C123)/1000000)*'Base Activos'!$J$58,((J123+C123)/1000000)*'Base Activos'!$J$58))*$H$7,"")) -> 
F124: =IF($J$6=1,0,IF(B124<$D$11+1,IF(C124="","",IF($D$9>='Base Activos'!$J$57,((J124+C124)/1000000)*'Base Activos'!$J$58,((J124+C124)/1000000)*'Base Activos'!$J$58))*$H$7,"")) -> 
F125: =IF($J$6=1,0,IF(B125<$D$11+1,IF(C125="","",IF($D$9>='Base Activos'!$J$57,((J125+C125)/1000000)*'Base Activos'!$J$58,((J125+C125)/1000000)*'Base Activos'!$J$58))*$H$7,"")) -> 
F126: =IF($J$6=1,0,IF(B126<$D$11+1,IF(C126="","",IF($D$9>='Base Activos'!$J$57,((J126+C126)/1000000)*'Base Activos'!$J$58,((J126+C126)/1000000)*'Base Activos'!$J$58))*$H$7,"")) -> 
F127: =IF($J$6=1,0,IF(B127<$D$11+1,IF(C127="","",IF($D$9>='Base Activos'!$J$57,((J127+C127)/1000000)*'Base Activos'!$J$58,((J127+C127)/1000000)*'Base Activos'!$J$58))*$H$7,"")) -> 
F128: =IF($J$6=1,0,IF(B128<$D$11+1,IF(C128="","",IF($D$9>='Base Activos'!$J$57,((J128+C128)/1000000)*'Base Activos'!$J$58,((J128+C128)/1000000)*'Base Activos'!$J$58))*$H$7,"")) -> 
F129: =IF($J$6=1,0,IF(B129<$D$11+1,IF(C129="","",IF($D$9>='Base Activos'!$J$57,((J129+C129)/1000000)*'Base Activos'!$J$58,((J129+C129)/1000000)*'Base Activos'!$J$58))*$H$7,"")) -> 
F130: =IF($J$6=1,0,IF(B130<$D$11+1,IF(C130="","",IF($D$9>='Base Activos'!$J$57,((J130+C130)/1000000)*'Base Activos'!$J$58,((J130+C130)/1000000)*'Base Activos'!$J$58))*$H$7,"")) -> 
F131: =IF($J$6=1,0,IF(B131<$D$11+1,IF(C131="","",IF($D$9>='Base Activos'!$J$57,((J131+C131)/1000000)*'Base Activos'!$J$58,((J131+C131)/1000000)*'Base Activos'!$J$58))*$H$7,"")) -> 
F132: =IF($J$6=1,0,IF(B132<$D$11+1,IF(C132="","",IF($D$9>='Base Activos'!$J$57,((J132+C132)/1000000)*'Base Activos'!$J$58,((J132+C132)/1000000)*'Base Activos'!$J$58))*$H$7,"")) -> 
F133: =IF($J$6=1,0,IF(B133<$D$11+1,IF(C133="","",IF($D$9>='Base Activos'!$J$57,((J133+C133)/1000000)*'Base Activos'!$J$58,((J133+C133)/1000000)*'Base Activos'!$J$58))*$H$7,"")) -> 
F134: =IF($J$6=1,0,IF(B134<$D$11+1,IF(C134="","",IF($D$9>='Base Activos'!$J$57,((J134+C134)/1000000)*'Base Activos'!$J$58,((J134+C134)/1000000)*'Base Activos'!$J$58))*$H$7,"")) -> 
F135: =IF($J$6=1,0,IF(B135<$D$11+1,IF(C135="","",IF($D$9>='Base Activos'!$J$57,((J135+C135)/1000000)*'Base Activos'!$J$58,((J135+C135)/1000000)*'Base Activos'!$J$58))*$H$7,"")) -> 
F136: =IF($J$6=1,0,IF(B136<$D$11+1,IF(C136="","",IF($D$9>='Base Activos'!$J$57,((J136+C136)/1000000)*'Base Activos'!$J$58,((J136+C136)/1000000)*'Base Activos'!$J$58))*$H$7,"")) -> 
F137: =IF($J$6=1,0,IF(B137<$D$11+1,IF(C137="","",IF($D$9>='Base Activos'!$J$57,((J137+C137)/1000000)*'Base Activos'!$J$58,((J137+C137)/1000000)*'Base Activos'!$J$58))*$H$7,"")) -> 
F138: =IF($J$6=1,0,IF(B138<$D$11+1,IF(C138="","",IF($D$9>='Base Activos'!$J$57,((J138+C138)/1000000)*'Base Activos'!$J$58,((J138+C138)/1000000)*'Base Activos'!$J$58))*$H$7,"")) -> 
F139: =IF($J$6=1,0,IF(B139<$D$11+1,IF(C139="","",IF($D$9>='Base Activos'!$J$57,((J139+C139)/1000000)*'Base Activos'!$J$58,((J139+C139)/1000000)*'Base Activos'!$J$58))*$H$7,"")) -> 
F140: =IF($J$6=1,0,IF(B140<$D$11+1,IF(C140="","",IF($D$9>='Base Activos'!$J$57,((J140+C140)/1000000)*'Base Activos'!$J$58,((J140+C140)/1000000)*'Base Activos'!$J$58))*$H$7,"")) -> 
F141: =IF($J$6=1,0,IF(B141<$D$11+1,IF(C141="","",IF($D$9>='Base Activos'!$J$57,((J141+C141)/1000000)*'Base Activos'!$J$58,((J141+C141)/1000000)*'Base Activos'!$J$58))*$H$7,"")) -> 
F142: =IF($J$6=1,0,IF(B142<$D$11+1,IF(C142="","",IF($D$9>='Base Activos'!$J$57,((J142+C142)/1000000)*'Base Activos'!$J$58,((J142+C142)/1000000)*'Base Activos'!$J$58))*$H$7,"")) -> 
F143: =IF($J$6=1,0,IF(B143<$D$11+1,IF(C143="","",IF($D$9>='Base Activos'!$J$57,((J143+C143)/1000000)*'Base Activos'!$J$58,((J143+C143)/1000000)*'Base Activos'!$J$58))*$H$7,"")) -> 
F144: =IF($J$6=1,0,IF(B144<$D$11+1,IF(C144="","",IF($D$9>='Base Activos'!$J$57,((J144+C144)/1000000)*'Base Activos'!$J$58,((J144+C144)/1000000)*'Base Activos'!$J$58))*$H$7,"")) -> 
F145: =IF($J$6=1,0,IF(B145<$D$11+1,IF(C145="","",IF($D$9>='Base Activos'!$J$57,((J145+C145)/1000000)*'Base Activos'!$J$58,((J145+C145)/1000000)*'Base Activos'!$J$58))*$H$7,"")) -> 
F146: =IF($J$6=1,0,IF(B146<$D$11+1,IF(C146="","",IF($D$9>='Base Activos'!$J$57,((J146+C146)/1000000)*'Base Activos'!$J$58,((J146+C146)/1000000)*'Base Activos'!$J$58))*$H$7,"")) -> 
F147: =IF($J$6=1,0,IF(B147<$D$11+1,IF(C147="","",IF($D$9>='Base Activos'!$J$57,((J147+C147)/1000000)*'Base Activos'!$J$58,((J147+C147)/1000000)*'Base Activos'!$J$58))*$H$7,"")) -> 
F148: =IF($J$6=1,0,IF(B148<$D$11+1,IF(C148="","",IF($D$9>='Base Activos'!$J$57,((J148+C148)/1000000)*'Base Activos'!$J$58,((J148+C148)/1000000)*'Base Activos'!$J$58))*$H$7,"")) -> 
F149: =IF($J$6=1,0,IF(B149<$D$11+1,IF(C149="","",IF($D$9>='Base Activos'!$J$57,((J149+C149)/1000000)*'Base Activos'!$J$58,((J149+C149)/1000000)*'Base Activos'!$J$58))*$H$7,"")) -> 
F150: =IF($J$6=1,0,IF(B150<$D$11+1,IF(C150="","",IF($D$9>='Base Activos'!$J$57,((J150+C150)/1000000)*'Base Activos'!$J$58,((J150+C150)/1000000)*'Base Activos'!$J$58))*$H$7,"")) -> 
F151: =IF($J$6=1,0,IF(B151<$D$11+1,IF(C151="","",IF($D$9>='Base Activos'!$J$57,((J151+C151)/1000000)*'Base Activos'!$J$58,((J151+C151)/1000000)*'Base Activos'!$J$58))*$H$7,"")) -> 
F152: =IF($J$6=1,0,IF(B152<$D$11+1,IF(C152="","",IF($D$9>='Base Activos'!$J$57,((J152+C152)/1000000)*'Base Activos'!$J$58,((J152+C152)/1000000)*'Base Activos'!$J$58))*$H$7,"")) -> 
F153: =IF($J$6=1,0,IF(B153<$D$11+1,IF(C153="","",IF($D$9>='Base Activos'!$J$57,((J153+C153)/1000000)*'Base Activos'!$J$58,((J153+C153)/1000000)*'Base Activos'!$J$58))*$H$7,"")) -> 
F154: =IF($J$6=1,0,IF(B154<$D$11+1,IF(C154="","",IF($D$9>='Base Activos'!$J$57,((J154+C154)/1000000)*'Base Activos'!$J$58,((J154+C154)/1000000)*'Base Activos'!$J$58))*$H$7,"")) -> 
F155: =IF($J$6=1,0,IF(B155<$D$11+1,IF(C155="","",IF($D$9>='Base Activos'!$J$57,((J155+C155)/1000000)*'Base Activos'!$J$58,((J155+C155)/1000000)*'Base Activos'!$J$58))*$H$7,"")) -> 
F156: =IF($J$6=1,0,IF(B156<$D$11+1,IF(C156="","",IF($D$9>='Base Activos'!$J$57,((J156+C156)/1000000)*'Base Activos'!$J$58,((J156+C156)/1000000)*'Base Activos'!$J$58))*$H$7,"")) -> 
F157: =IF($J$6=1,0,IF(B157<$D$11+1,IF(C157="","",IF($D$9>='Base Activos'!$J$57,((J157+C157)/1000000)*'Base Activos'!$J$58,((J157+C157)/1000000)*'Base Activos'!$J$58))*$H$7,"")) -> 
F158: =IF($J$6=1,0,IF(B158<$D$11+1,IF(C158="","",IF($D$9>='Base Activos'!$J$57,((J158+C158)/1000000)*'Base Activos'!$J$58,((J158+C158)/1000000)*'Base Activos'!$J$58))*$H$7,"")) -> 
E159: =IF(B159="","",IF($F$3=1,PMT(i,$D$11,-$J$30),PMT(i,$D$11,-$J$30,$D$14))) ->  | F159: =IF($J$6=1,0,IF(B159<$D$11+1,IF(C159="","",IF($D$9>='Base Activos'!$J$57,((J159+C159)/1000000)*'Base Activos'!$J$58,((J159+C159)/1000000)*'Base Activos'!$J$58))*$H$7,"")) -> 
D160: =IF(B160="","",i*J159) ->  | F160: =IF($J$6=1,0,IF(B160<$D$11+1,IF(C160="","",IF($D$9>='Base Activos'!$J$57,((J160+C160)/1000000)*'Base Activos'!$J$58,((J160+C160)/1000000)*'Base Activos'!$J$58))*$H$7,"")) -> 
B161: =IF(B160<$D$11,B160+1,"") ->  | C161: =IF(B161="","",E161-D161) ->  | F161: =IF($J$6=1,0,IF(B161<$D$11+1,IF(C161="","",IF($D$9>='Base Activos'!$J$57,((J161+C161)/1000000)*'Base Activos'!$J$58,((J161+C161)/1000000)*'Base Activos'!$J$58))*$H$7,"")) ->  | G161: =IF($AA$6=1,0,IF(C161="","",$H$9)) ->  | H161: =IF(ISERROR(C161+D161+F161+G161),"",C161+D161+F161+G161) ->  | J161: =IF(C161="","",J160-C161) ->  | K161: =IF(B161<=$D$11,-H161,"") -> 
F162: =IF($J$6=1,0,IF(B162<$D$11+1,IF(C162="","",IF($D$9>='Base Activos'!$J$57,((J162+C162)/1000000)*'Base Activos'!$J$58,((J162+C162)/1000000)*'Base Activos'!$J$58))*$H$7,"")) -> 
F163: =IF($J$6=1,0,IF(B163<$D$11+1,IF(C163="","",IF($D$9>='Base Activos'!$J$57,((J163+C163)/1000000)*'Base Activos'!$J$58,((J163+C163)/1000000)*'Base Activos'!$J$58))*$H$7,"")) -> 
F164: =IF($J$6=1,0,IF(B164<$D$11+1,IF(C164="","",IF($D$9>='Base Activos'!$J$57,((J164+C164)/1000000)*'Base Activos'!$J$58,((J164+C164)/1000000)*'Base Activos'!$J$58))*$H$7,"")) -> 
F165: =IF($J$6=1,0,IF(B165<$D$11+1,IF(C165="","",IF($D$9>='Base Activos'!$J$57,((J165+C165)/1000000)*'Base Activos'!$J$58,((J165+C165)/1000000)*'Base Activos'!$J$58))*$H$7,"")) -> 
F166: =IF($J$6=1,0,IF(B166<$D$11+1,IF(C166="","",IF($D$9>='Base Activos'!$J$57,((J166+C166)/1000000)*'Base Activos'!$J$58,((J166+C166)/1000000)*'Base Activos'!$J$58))*$H$7,"")) -> 
F167: =IF($J$6=1,0,IF(B167<$D$11+1,IF(C167="","",IF($D$9>='Base Activos'!$J$57,((J167+C167)/1000000)*'Base Activos'!$J$58,((J167+C167)/1000000)*'Base Activos'!$J$58))*$H$7,"")) -> 
F168: =IF($J$6=1,0,IF(B168<$D$11+1,IF(C168="","",IF($D$9>='Base Activos'!$J$57,((J168+C168)/1000000)*'Base Activos'!$J$58,((J168+C168)/1000000)*'Base Activos'!$J$58))*$H$7,"")) -> 
F169: =IF($J$6=1,0,IF(B169<$D$11+1,IF(C169="","",IF($D$9>='Base Activos'!$J$57,((J169+C169)/1000000)*'Base Activos'!$J$58,((J169+C169)/1000000)*'Base Activos'!$J$58))*$H$7,"")) -> 
F170: =IF($J$6=1,0,IF(B170<$D$11+1,IF(C170="","",IF($D$9>='Base Activos'!$J$57,((J170+C170)/1000000)*'Base Activos'!$J$58,((J170+C170)/1000000)*'Base Activos'!$J$58))*$H$7,"")) -> 
F171: =IF($J$6=1,0,IF(B171<$D$11+1,IF(C171="","",IF($D$9>='Base Activos'!$J$57,((J171+C171)/1000000)*'Base Activos'!$J$58,((J171+C171)/1000000)*'Base Activos'!$J$58))*$H$7,"")) -> 
F172: =IF($J$6=1,0,IF(B172<$D$11+1,IF(C172="","",IF($D$9>='Base Activos'!$J$57,((J172+C172)/1000000)*'Base Activos'!$J$58,((J172+C172)/1000000)*'Base Activos'!$J$58))*$H$7,"")) -> 
F173: =IF($J$6=1,0,IF(B173<$D$11+1,IF(C173="","",IF($D$9>='Base Activos'!$J$57,((J173+C173)/1000000)*'Base Activos'!$J$58,((J173+C173)/1000000)*'Base Activos'!$J$58))*$H$7,"")) -> 
F174: =IF($J$6=1,0,IF(B174<$D$11+1,IF(C174="","",IF($D$9>='Base Activos'!$J$57,((J174+C174)/1000000)*'Base Activos'!$J$58,((J174+C174)/1000000)*'Base Activos'!$J$58))*$H$7,"")) -> 
F175: =IF($J$6=1,0,IF(B175<$D$11+1,IF(C175="","",IF($D$9>='Base Activos'!$J$57,((J175+C175)/1000000)*'Base Activos'!$J$58,((J175+C175)/1000000)*'Base Activos'!$J$58))*$H$7,"")) -> 
F176: =IF($J$6=1,0,IF(B176<$D$11+1,IF(C176="","",IF($D$9>='Base Activos'!$J$57,((J176+C176)/1000000)*'Base Activos'!$J$58,((J176+C176)/1000000)*'Base Activos'!$J$58))*$H$7,"")) -> 
F177: =IF($J$6=1,0,IF(B177<$D$11+1,IF(C177="","",IF($D$9>='Base Activos'!$J$57,((J177+C177)/1000000)*'Base Activos'!$J$58,((J177+C177)/1000000)*'Base Activos'!$J$58))*$H$7,"")) -> 
F178: =IF($J$6=1,0,IF(B178<$D$11+1,IF(C178="","",IF($D$9>='Base Activos'!$J$57,((J178+C178)/1000000)*'Base Activos'!$J$58,((J178+C178)/1000000)*'Base Activos'!$J$58))*$H$7,"")) -> 
F179: =IF($J$6=1,0,IF(B179<$D$11+1,IF(C179="","",IF($D$9>='Base Activos'!$J$57,((J179+C179)/1000000)*'Base Activos'!$J$58,((J179+C179)/1000000)*'Base Activos'!$J$58))*$H$7,"")) -> 
F180: =IF($J$6=1,0,IF(B180<$D$11+1,IF(C180="","",IF($D$9>='Base Activos'!$J$57,((J180+C180)/1000000)*'Base Activos'!$J$58,((J180+C180)/1000000)*'Base Activos'!$J$58))*$H$7,"")) -> 
F181: =IF($J$6=1,0,IF(B181<$D$11+1,IF(C181="","",IF($D$9>='Base Activos'!$J$57,((J181+C181)/1000000)*'Base Activos'!$J$58,((J181+C181)/1000000)*'Base Activos'!$J$58))*$H$7,"")) -> 
F182: =IF($J$6=1,0,IF(B182<$D$11+1,IF(C182="","",IF($D$9>='Base Activos'!$J$57,((J182+C182)/1000000)*'Base Activos'!$J$58,((J182+C182)/1000000)*'Base Activos'!$J$58))*$H$7,"")) -> 
F183: =IF($J$6=1,0,IF(B183<$D$11+1,IF(C183="","",IF($D$9>='Base Activos'!$J$57,((J183+C183)/1000000)*'Base Activos'!$J$58,((J183+C183)/1000000)*'Base Activos'!$J$58))*$H$7,"")) -> 
F184: =IF($J$6=1,0,IF(B184<$D$11+1,IF(C184="","",IF($D$9>='Base Activos'!$J$57,((J184+C184)/1000000)*'Base Activos'!$J$58,((J184+C184)/1000000)*'Base Activos'!$J$58))*$H$7,"")) -> 
F185: =IF($J$6=1,0,IF(B185<$D$11+1,IF(C185="","",IF($D$9>='Base Activos'!$J$57,((J185+C185)/1000000)*'Base Activos'!$J$58,((J185+C185)/1000000)*'Base Activos'!$J$58))*$H$7,"")) -> 
F186: =IF($J$6=1,0,IF(B186<$D$11+1,IF(C186="","",IF($D$9>='Base Activos'!$J$57,((J186+C186)/1000000)*'Base Activos'!$J$58,((J186+C186)/1000000)*'Base Activos'!$J$58))*$H$7,"")) -> 
F187: =IF($J$6=1,0,IF(B187<$D$11+1,IF(C187="","",IF($D$9>='Base Activos'!$J$57,((J187+C187)/1000000)*'Base Activos'!$J$58,((J187+C187)/1000000)*'Base Activos'!$J$58))*$H$7,"")) -> 
F188: =IF($J$6=1,0,IF(B188<$D$11+1,IF(C188="","",IF($D$9>='Base Activos'!$J$57,((J188+C188)/1000000)*'Base Activos'!$J$58,((J188+C188)/1000000)*'Base Activos'!$J$58))*$H$7,"")) -> 
F189: =IF($J$6=1,0,IF(B189<$D$11+1,IF(C189="","",IF($D$9>='Base Activos'!$J$57,((J189+C189)/1000000)*'Base Activos'!$J$58,((J189+C189)/1000000)*'Base Activos'!$J$58))*$H$7,"")) -> 
F190: =IF($J$6=1,0,IF(B190<$D$11+1,IF(C190="","",IF($D$9>='Base Activos'!$J$57,((J190+C190)/1000000)*'Base Activos'!$J$58,((J190+C190)/1000000)*'Base Activos'!$J$58))*$H$7,"")) -> 
F191: =IF($J$6=1,0,IF(B191<$D$11+1,IF(C191="","",IF($D$9>='Base Activos'!$J$57,((J191+C191)/1000000)*'Base Activos'!$J$58,((J191+C191)/1000000)*'Base Activos'!$J$58))*$H$7,"")) -> 
F192: =IF($J$6=1,0,IF(B192<$D$11+1,IF(C192="","",IF($D$9>='Base Activos'!$J$57,((J192+C192)/1000000)*'Base Activos'!$J$58,((J192+C192)/1000000)*'Base Activos'!$J$58))*$H$7,"")) -> 
F193: =IF($J$6=1,0,IF(B193<$D$11+1,IF(C193="","",IF($D$9>='Base Activos'!$J$57,((J193+C193)/1000000)*'Base Activos'!$J$58,((J193+C193)/1000000)*'Base Activos'!$J$58))*$H$7,"")) -> 
F194: =IF($J$6=1,0,IF(B194<$D$11+1,IF(C194="","",IF($D$9>='Base Activos'!$J$57,((J194+C194)/1000000)*'Base Activos'!$J$58,((J194+C194)/1000000)*'Base Activos'!$J$58))*$H$7,"")) -> 
F195: =IF($J$6=1,0,IF(B195<$D$11+1,IF(C195="","",IF($D$9>='Base Activos'!$J$57,((J195+C195)/1000000)*'Base Activos'!$J$58,((J195+C195)/1000000)*'Base Activos'!$J$58))*$H$7,"")) -> 
F196: =IF($J$6=1,0,IF(B196<$D$11+1,IF(C196="","",IF($D$9>='Base Activos'!$J$57,((J196+C196)/1000000)*'Base Activos'!$J$58,((J196+C196)/1000000)*'Base Activos'!$J$58))*$H$7,"")) -> 
F197: =IF($J$6=1,0,IF(B197<$D$11+1,IF(C197="","",IF($D$9>='Base Activos'!$J$57,((J197+C197)/1000000)*'Base Activos'!$J$58,((J197+C197)/1000000)*'Base Activos'!$J$58))*$H$7,"")) -> 
F198: =IF($J$6=1,0,IF(B198<$D$11+1,IF(C198="","",IF($D$9>='Base Activos'!$J$57,((J198+C198)/1000000)*'Base Activos'!$J$58,((J198+C198)/1000000)*'Base Activos'!$J$58))*$H$7,"")) -> 
F199: =IF($J$6=1,0,IF(B199<$D$11+1,IF(C199="","",IF($D$9>='Base Activos'!$J$57,((J199+C199)/1000000)*'Base Activos'!$J$58,((J199+C199)/1000000)*'Base Activos'!$J$58))*$H$7,"")) -> 
F200: =IF($J$6=1,0,IF(B200<$D$11+1,IF(C200="","",IF($D$9>='Base Activos'!$J$57,((J200+C200)/1000000)*'Base Activos'!$J$58,((J200+C200)/1000000)*'Base Activos'!$J$58))*$H$7,"")) -> 
F201: =IF($J$6=1,0,IF(B201<$D$11+1,IF(C201="","",IF($D$9>='Base Activos'!$J$57,((J201+C201)/1000000)*'Base Activos'!$J$58,((J201+C201)/1000000)*'Base Activos'!$J$58))*$H$7,"")) -> 
F202: =IF($J$6=1,0,IF(B202<$D$11+1,IF(C202="","",IF($D$9>='Base Activos'!$J$57,((J202+C202)/1000000)*'Base Activos'!$J$58,((J202+C202)/1000000)*'Base Activos'!$J$58))*$H$7,"")) -> 
F203: =IF($J$6=1,0,IF(B203<$D$11+1,IF(C203="","",IF($D$9>='Base Activos'!$J$57,((J203+C203)/1000000)*'Base Activos'!$J$58,((J203+C203)/1000000)*'Base Activos'!$J$58))*$H$7,"")) -> 
F204: =IF($J$6=1,0,IF(B204<$D$11+1,IF(C204="","",IF($D$9>='Base Activos'!$J$57,((J204+C204)/1000000)*'Base Activos'!$J$58,((J204+C204)/1000000)*'Base Activos'!$J$58))*$H$7,"")) -> 
F205: =IF($J$6=1,0,IF(B205<$D$11+1,IF(C205="","",IF($D$9>='Base Activos'!$J$57,((J205+C205)/1000000)*'Base Activos'!$J$58,((J205+C205)/1000000)*'Base Activos'!$J$58))*$H$7,"")) -> 
... 65 more rows

Sheet Base Activos
C1: Red | D1: Itaú | E1: =IF(D1="Itaú",1,IF(D1="Corpbanca",2,0)) -> 1
C2: Salario Mínimo Legal Vigente | D2: 1300000
C3: IVA | D3: 0.19
L4: 0
C5: Tarjeta de crédito
C7: Tasa | D7: 0.2591 | E7: ea
C8: Plazo diferido | D8: 12
C9: Meses exonerados | D9: 6
C11: Cuota de manejo
D12: Trimestral | E12: Mensual
C13: Clásica | D13: 67500 | E13: =+D13/3 -> 22500
C14: Oro | D14: 82200 | E14: =+D14/3 -> 27400
C15: Platinum | D15: 91500 | E15: =+D15/3 -> 30500
C16: Black/signature/Infinite | D16: 119100 | E16: =+D16/3 -> 39700
C18: Cupo
C19: menos de 2 MM | D19: 1
C20: más de 2 MM | D20: 2
F21: 0.015 | G21: =F21*12 -> 0.18 | H21: =EFFECT(G21,12) -> 0.1956181715
C23: =IF(D1="Itaú",H27,I27) -> Crédito Rotativo
D25: 0.1956 | E25: 12 | F25: Meses exonerados | H25: Nombres Productos
C26: Banca Personas | D26: 0.1956 | E26: 12 | F26: 0 | H26: Itaú | I26: Corpbanca
C27: Preferente | D27: 0.1956 | E27: 12 | F27: 0 | H27: Crédito Rotativo | I27: Cupo Plus
C28: Banca Privada | D28: 0.1956 | E28: 12 | F28: 0 | H28: Rotativo Educativo | I28: Cupo Plus U
C29: =IF(D1="Itaú",H28,I28) -> Rotativo Educativo | D29: 0.1956 | E29: 12 | F29: 0
H30: Cuota de manejo
H31: Tipo | I31: Corpbanca | J31: Itaú | K31: 1
H32: =+C26 -> Banca Personas | I32: 29900 | J32: 29900 | K32: 2
H33: =+C27 -> Preferente | I33: 29900 | J33: 29900 | K33: 3
H34: =+C28 -> Banca Privada | K34: 4
C35: Cupo | H35: =+C29 -> Rotativo Educativo | I35: 29900 | J35: 29900 | K35: 5
C36: menos de 2 MM | D36: 1
C37: más de 2 MM | D37: 2
C39: Sobregiro
C41: Tasa | D41: 0.2591 | E41: ea
C42: Plazo diferido | D42: 1.5
C43: Meses exonerados | D43: 0
C44: Plazo máximo
D46: Mensual
C47: Cuota de manejo | D47: 0
C49: Cupo
C50: menos de 2 MM | D50: 1
C51: más de 2 MM | D51: 2
C53: Hipotecario y Leasing
B55: 1 | D55: Base | E55: CXI | F55: =+G73 -> Colaborador Itaú Corpbanca | G55: Cobro final | I55: Seguro de vida | L55: Seguro del inmueble | O55: Hipotecario | S55: Leasing | Y55: =+C72 -> Crédito Hipotecario | Z55: Hipotecario | AA55: 1 | AC55: =+C73 -> Leasing Habitacional | AD55: Leasing | AE55: 1 | AF55: Leasing familiar
B56: =1+B55 -> 2 | O56: Adquisición de vivienda nueva o usada | P56: 0 | Q56: 0 | R56: 1 | S56: Adquisición de vivienda nueva o usada | T56: 0 | U56: 0 | V56: 1 | X56: =+O56 -> Adquisición de vivienda nueva o usada | Y56: 0.7 | Z56: 240 | AA56: =1+AA55 -> 2 | AB56: =+S56 -> Adquisición de vivienda nueva o usada | AC56: 0.8 | AD56: 240 | AE56: =1+AE55 -> 2 | AF56: 0.8
B57: 3 | C57: IVA | D57: =D3 -> 0.19 | E57: =D3 -> 0.19 | F57: =D3 -> 0.19 | I57: Límite estudio crédito | J57: 0 | K57: 1 | L57: Zona 1 | M57: 0.143 | O57: Adquisición de Vivienda CxI | P57: 0 | Q57: 0 | R57: 2 | S57: Adquisición de Vivienda CxI | T57: 0 | U57: 0 | V57: 2 | X57: Adquisición de Vivienda CxI | Y57: 0.7 | Z57: 240 | AA57: =1+AA56 -> 3 | AB57: Adquisición de Vivienda CxI | AC57: 0.8 | AD57: 240 | AE57: =1+AE56 -> 3 | AF57: 0.8
B58: 4 | C58: Tarifa Avalúo | D58: 0.8 | E58: 0 | F58: 0.8 | I58: Tarifa por millón | J58: 270 | K58: 2 | L58: Zona 2 | M58: 0.112 | O58: Construcción de vivienda individual | P58: 0 | Q58: 0 | R58: 3 | S58: Cesión de contratos | T58: 1 | U58: 0 | V58: 3 | X58: Construcción de vivienda individual | Y58: 0.7 | Z58: 240 | AA58: 4 | AB58: Cesión de contratos | AC58: 0.8 | AD58: 240 | AE58: 4
B59: 5 | C59: Valor cobrado sobre Avalúo | D59: 1 | E59: Ver cuadro | F59: 0.5 | G59: =IF(H59=1,0,IF(B68=2,VLOOKUP(Vivienda!$D$6,'Base Activos'!$O$71:$Q$76,3),IF(AND(B66=1,B68<>2),(((Vivienda!D6*'Base Activos'!D58)*(1+'Base Activos'!D57))/1000)*'Base Activos'!D59,IF(AND(B66=2,B68<>2),(((Vivienda!D6*'Base Activos'!F58)*(1+'Base Activos'!F57))/1000)*'Base Activos'!F59)))) ->  | K59: 3 | L59: Zona 3 | M59: 0.102 | O59: Compra de cartera | P59: 0 | Q59: 0 | R59: 4 | S59: Adición por mejoras | T59: 1 | U59: 0 | V59: 4 | X59: Compra de cartera | Y59: 0.7 | Z59: 240 | AA59: 5 | AB59: Adición por mejoras | AC59: 0.8 | AD59: 240 | AE59: 5
B60: 6 | C60: Estudio Títulos (incluye IVA) | D60: 375300 | E60: 0 | F60: =+D60 -> 375300 | G60: =IF(H60=1,0,IF(B66=2,F60,IF(B68=2,E60,IF(D68=1,0,D60)))) ->  | L60: Prima Edificio | M60: =IF(Vivienda!$H$14=1,((Vivienda!D6*M57)),IF(Vivienda!$H$14=2,((Vivienda!D6*M58)),IF(Vivienda!$H$14=3,((Vivienda!D6*M59)),IF(Vivienda!$H$14=4,0))))/1000 ->  | O60: Remodelación vivienda | P60: 0 | Q60: 0 | R60: 5 | S60: Recolocación | T60: 1 | U60: 0 | V60: 5 | X60: Remodelación vivienda | Y60: 0.5 | Z60: 240 | AA60: 6 | AB60: Recolocación | AC60: 0.8 | AD60: 240 | AE60: 6
B61: 7 | C61: Límite estudio crédito | D61: 0 | G61: =IF(H61=1,0,MAX(G62:G63)) -> 0 | L61: Asistencia | M61: 0 | O61: Otros usos | P61: 0 | Q61: 0 | R61: 6 | S61: Devolución de cánones extraordinarios | T61: 1 | U61: 0 | V61: 6 | X61: Otros usos | Y61: 0.7 | Z61: 120 | AA61: 7 | AB61: Devolución de cánones extraordinarios | AC61: 0 | AD61: 240 | AE61: 7
B62: 8 | C62: Estudio Crédito > 150 MM | D62: 0 | E62: 0 | F62: 0 | G62: =IF(Vivienda!D7>'Base Activos'!D61,IF(B66=2,F62,IF(B68=2,E62,IF(E68=1,0,D62))),0) -> 0 | L62: RC | M62: 0 | T62: 0 | U62: 0 | V62: 7 | AB62: Leaseback | AC62: 0 | AD62: 240 | AE62: 8
B63: 9 | C63: Estudio Crédito < 150 MM | D63: 0 | E63: 0 | F63: 0 | G63: =IF(Vivienda!D7<'Base Activos'!D61,IF(B66=2,F63,IF(B68=2,E63,IF(E68=1,0,D63))),0) -> 0 | L63: Fee de recaudo mensual | M63: 0 | O63: Tope
B64: 10 | C64: Opción de compra Leasing | D64: 0.01 | E64: 0.01 | F64: 0.01 | G64: =IF(B66=2,F64,IF(B68=2,E64,IF(D68=1,0,D64))) ->  | L64: Total Fee de recaudo | M64: =M63*12 -> 0 | O64: Otros | Q64: 0.7
L65: TOTAL A PAGAR | M65: =+M60+M61+M62+M64 ->  | O65: Leasing Vivienda no familiar | Q65: 0.8
B66: =VLOOKUP(C66,$G$72:$H$74,2,0) -> 1 | C66: Cliente externo | L66: IVA | M66: =D3 -> 0.19
B67: =IFERROR(VLOOKUP(C67,$C$72:$D$74,2,0),0) -> 1 | C67: Crédito Hipotecario | L67: TOTAL A PAGAR (IVA incluido) | M67: =+M65*(1+M66) -> 
B68: =VLOOKUP(C68,IF(B67=1,LineasHipotecario,IF(B67=2,LineasLeasing,0)),3,0) ->  | D68: =VLOOKUP(C68,IF(B67=1,Hipotecario,IF(B67=2,Leasing,0)),2,0) ->  | E68: =VLOOKUP(C68,IF(B67=1,Hipotecario,IF(B67=2,Leasing,0)),3,0) -> 
N70: Avalúo vivienda NO VIS | Q70: Con IVA
C71: Tipo de producto | G71: Cliente | N71: 135 | O71: =N71*SMLV+1 -> 175500001 | P71: 260672.2689 | Q71: =P71*(1+$D$3) -> 310200
C72: Crédito Hipotecario | D72: 1 | G72: Cliente externo | H72: 1 | O72: 251000000 | P72: 390000 | Q72: =P72*(1+$D$3) -> 464100
C73: Leasing Habitacional | D73: 2 | G73: Colaborador Itaú Corpbanca | H73: 2 | O73: 351000000 | P73: 520336.1345 | Q73: 619200
O74: 451000000 | P74: 714831.9328 | Q74: 850650
C75: Lista desplegable departamentos | O75: 751000000 | P75: 935588.2353 | Q75: 1113350
O76: 951000000 | P76: 1258193.277 | Q76: =P76*(1+$D$3) -> 1497250
C77: Amazonas | O77: 1501000000 | P77: 1324495.798 | Q77: 1576150
C78: Antioquia | O78: 2001000000 | P78: 1456974.79 | Q78: 1733800
C79: Arauca
C80: Atlantico
C81: Bogota
C82: Bolivar
C83: Boyaca
C84: Caldas
C85: Caqueta
C86: Casanare
C87: Cauca
C88: Cesar
C89: Choco
C90: Cundinamarca
C91: Guajira
C92: Guainia
C93: Guaviare
C94: Huila
C95: Magdalena
C96: Meta
C97: Nariño
C98: Putumayo
C99: Quindio
C100: Risaralda
C101: San Andrés
C102: Santander
C103: Norte de Santander
C104: Sucre
C105: Tolima
C106: Vaupés
C107: Vichada
C108: Valle
C112: Consumo
C114: Comisiones | G114: Lista desplegable | J114: Listado de productos | K114: Periodo de gracia máx meses | L114: Plazo máximo meses | M114: Red | N114: Características periodo gracia | O114: Seguro de vida
J115: Crédito Personal | K115: 0 | L115: 60 | M115: Itaú | N115: 0 | O115: 0.00088
C116: Seguro de vida | D116: 0.00088 | G116: Nuevo
G117: Usado | J117: Libranza Pública | K117: 2 | L117: 108 | M117: Corpbanca | N117: capital e intereses | O117: 0.00092
C118: Estudio de crédito | D118: 0 | J118: Libranza Privada | K118: 0 | L118: 84 | M118: Itaú | N118: 0 | O118: 0.00062
C119: Costo del desembolso | D119: 0 | J119: Libranza Empleados | K119: 0 | L119: 84 | M119: Ambas | N119: 0 | O119: 0.000313
C120: Comisión por aval | D120: 0 | G120: Lista desplegable | J120: Crédito de Vehículo | K120: 0 | L120: 72 | M120: Ambas | N120: 0 | O120: 0.00092
C121: Registro garantía ante Confecámaras | D121: 39300 | H121: Seleccionado
C122: Comisión desembolso | F122: =IF(G122=Consumo!$C$13,1,0) -> 0 | G122: Cheque de gerencia | J122: Crédito Universitario Largo Plazo | K122: 12 | L122: 60 | M122: Ambas | N122: capital | O122: 0.00088
C123: Levantamiento prenda Confecamáras | D123: 46101 | F123: =IF(G123=Consumo!$C$13,1,0) -> 0 | G123: ACH | J123: Crédito Universitario Especilización | K123: 0 | L123: 48 | M123: Itaú | N123: 0 | O123: 0.00088
C124: Seguro todo riesgo | F124: =IF(G124=Consumo!$C$13,1,0) -> 0 | G124: Abono en cuenta
C125: Avalúo Convenio | D125: 0 | F125: =IF(G125=Consumo!$C$13,1,0) -> 1 | G125: Mixta | J125: Crédito Universitario Largo Plazo (Inalde) | K125: 24 | L125: 84 | M125: Itaú | N125: capital | O125: 0.00088
C126: Certificado Dijín (vehículos usados) | D126: 44000
C127: Valor traspaso | D127: 247000
C128: Cuota de manejo | D128: 16500
D131: Costo del desembolso
D132: =+G122 -> Cheque de gerencia | E132: =+G123 -> ACH | F132: =+G124 -> Abono en cuenta | G132: Estudio de crédito | J132: Lista desplegable
D133: 2 | E133: 3 | F133: 4 | J133: Crédito Personal
C134: =J115 -> Crédito Personal | D134: 59900 | E134: 44200 | F134: 0 | G134: 0 | J134: Libranza Privada
C135: 0 | D135: 59900 | E135: 44200 | F135: 0 | G135: 0 | J135: Libranza Empleados
C136: Libranza Pública | D136: 59900 | E136: 44200 | F136: 0 | G136: 199900 | J136: Crédito de Vehículo
C137: Libranza Privada | D137: 59900 | E137: 44200 | F137: 0 | G137: 199900 | J137: Crédito Universitario Largo Plazo
C138: Libranza Empleados | D138: 0 | E138: 0 | F138: 0 | G138: 0 | J138: Crédito Universitario Especilización
C139: Crédito de Vehículo | D139: 0 | E139: 0 | F139: 0 | G139: 0 | J139: Crédito Universitario Largo Plazo (Inalde)
C140: 0 | D140: 0 | E140: 0 | F140: 0 | G140: 0
C141: Crédito Universitario Largo Plazo | D141: 0 | E141: 0 | F141: 0 | G141: 0
C142: Crédito Universitario Especilización | D142: 0 | E142: 0 | F142: 0 | G142: 0
C143: 0 | D143: 0 | E143: 0 | F143: 0 | G143: 0
C144: Crédito Universitario Largo Plazo (Inalde) | D144: 0 | E144: 0 | F144: 0 | G144: 0
C145: =J132 -> Lista desplegable | D145: 0 | E145: 0 | F145: 0 | G145: 0
C148: Total comisión Mixto | D148: =VLOOKUP(Consumo!$C$7,'Base Activos'!$C$132:$F$144,2,0) -> 59900 | E148: =VLOOKUP(Consumo!$C$7,'Base Activos'!$C$132:$F$144,3,0) -> 44200 | F148: =VLOOKUP(Consumo!$C$7,'Base Activos'!$C$132:$F$144,4,0) -> 0 | G148: =F148*H124+E148*H123+D148*H122 -> 0
C154: Rangos Valor vivienda
C156: Rural | D156: %%
C157: Urbana | D157: %%5

Sheet Carta_Consumo1
B2: =TODAY() -> 2026-06-10
B4: Valor Total Unificado (VTU)
B7: Estimado cliente,
B9: Itaú Corpbanca Colombia S.A. pone en práctica el principio de transparencia e información cierta, suficiente y oportuna para los consumidores financieros, y por ello le informamos el Valor Total Unificado (VTU) del producto en el que se encuentra interesado.
B11: El VTU es un indicador que le permite conocer los ingresos y/o costos asociados a tener este producto, estimando mensualmente esos valores durante un plazo específico.
B13: Producto | C13: =Consumo!C7 -> Crédito Personal
B14: Valor crédito | C14: =Consumo!C8 -> 500000000
B15: Plazo proyección | C15: =Consumo!C11 -> 32
B17: Valor Total Unificado de operaciones Activas (VTUA):
B18: VTUA Porcentual | C18: =Consumo!C10 -> 0.795856326
B20: VTUA Pesos | C20: Concepto | D20: Valor Total
C21: Intereses estimados | D21: 66185.46414
C22: Estudio de crédito | D22: 0
C23: Seguro de vida | D23: 3971.127848
C24: Costo del desembolso | D24: 0
C25: Valor comisión por aval | D25: 55000
C26: VTUA | D26: 125156.647
C27: Costo estimado durante el plazo proyectado.
B34: =VariablesCarta!D6 -> Acércate a nuestra oficina para conocer más y adquirir este producto.
B37: Cordial Saludo,
B39: aaaaa
B40: Fuerza de Venta Créditos Educativos
B41: aaaaa
B42: aaaaa
B46: Decreto 1854 de 2015, que modifica el Decreto 2555 de 2010.
B47: VTUA Porcentual :Tasa interna de retorno efectiva anual correspondiente a la proyección de los flujos mensuales asociados al producto.
B48: VTUA Pesos: Suma de valores proyectados para cada cocepto que hace parte del indicador.
B49: =BaseCarta!B23 -> Cálculo realizado con los valores vigentes de tasas y tarifas al día de la estimación. Las tarifas de las comisiones incluyen IVA. Los resultados varían por las condiciones del mercado y por ello, estos valores corresponden a una proyección estimada que puede o no ocurrir. Los conceptos que se tuvieron en cuenta para el cálculo son: cuotas del crédito, primas de seguros, comisiones y cualquier otro concepto inherente a tener el producto durante el plazo proyectado.

Sheet Carta_Consumo2
B2: =TODAY() -> 2026-06-10
B4: Valor Total Unificado (VTU)
B7: Estimado cliente,
B9: Itaú Corpbanca Colombia S.A. pone en práctica el principio de transparencia e información cierta, suficiente y oportuna para los consumidores financieros, y por ello le informamos el Valor Total Unificado (VTU) del producto en el que se encuentra interesado.
B11: El VTU es un indicador que le permite conocer los ingresos y/o costos asociados a tener este producto, estimando mensualmente esos valores durante un plazo específico.
B13: Producto | C13: =Consumo!C7 -> Crédito Personal
B14: Valor crédito | C14: =Consumo!C8 -> 500000000
B15: Plazo proyección | C15: =Consumo!C11 -> 32
B17: Valor Total Unificado de operaciones Activas (VTUA):
B18: VTUA Porcentual | C18: =Consumo!C10 -> 0.795856326
B20: VTUA Pesos | C20: Concepto | D20: Valor Total
C21: Intereses estimados | D21: 33466686.11
C22: Estudio de crédito | D22: 46164
C23: Seguro de vida | D23: 3329935.268
C24: Costo del desembolso | D24: 51293
C25: VTUA | D25: 36894078.38
C26: Costo estimado durante el plazo proyectado.
C30: VTUA | D30: 45099474.93
C31: Costo estimado durante el plazo proyectado.
B34: =VariablesCarta!D6 -> Acércate a nuestra oficina para conocer más y adquirir este producto.
B37: Cordial Saludo,
B39: A
B40: A
B41: A
B46: Decreto 1854 de 2015, que modifica el Decreto 2555 de 2010.
B47: VTUA Porcentual :Tasa interna de retorno efectiva anual correspondiente a la proyección de los flujos mensuales asociados al producto.
B48: VTUA Pesos: Suma de valores proyectados para cada cocepto que hace parte del indicador.
B49: =BaseCarta!B23 -> Cálculo realizado con los valores vigentes de tasas y tarifas al día de la estimación. Las tarifas de las comisiones incluyen IVA. Los resultados varían por las condiciones del mercado y por ello, estos valores corresponden a una proyección estimada que puede o no ocurrir. Los conceptos que se tuvieron en cuenta para el cálculo son: cuotas del crédito, primas de seguros, comisiones y cualquier otro concepto inherente a tener el producto durante el plazo proyectado.

Sheet Carta_Tarj_Rot1
B2: =TODAY() -> 2026-06-10
B4: Valor Total Unificado (VTU)
B7: Estimado cliente,
B9: Itaú Corpbanca Colombia S.A. pone en práctica el principio de transparencia e información cierta, suficiente y oportuna para los consumidores financieros, y por ello le informamos el Valor Total Unificado (VTU) del producto en el que se encuentra interesado.
B11: El VTU es un indicador que le permite conocer los ingresos y/o costos asociados a tener este producto, estimando mensualmente esos valores durante un plazo específico.
B13: Producto | C13: =BaseCarta!C28 -> Tarjeta de crédito
B14: Cupo estimado | C14: =BaseCarta!C29 -> 7800000
B15: Plazo proyección | C15: =BaseCarta!C31 -> 12
B17: Valor Total Unificado de operaciones Activas (VTUA):
B18: VTUA Porcentual | C18: =BaseCarta!C42 -> 
B20: VTUA Pesos | C20: Concepto | D20: Valor Total
C21: Intereses estimados | D21: 392436.0535
C22: Cuota de manejo | D22: 115200
C23: VTUA | D23: 507636.0535
C24: Costo estimado de este producto durante 12 meses.
B34: =VariablesCarta!D6 -> Acércate a nuestra oficina para conocer más y adquirir este producto.
B37: Cordial Saludo,
B39: a
B40: a
B41: a
B46: Decreto 1854 de 2015, que modifica el Decreto 2555 de 2010.
B47: VTUA Porcentual :Tasa interna de retorno efectiva anual correspondiente a la proyección de los flujos mensuales asociados al producto.
B48: VTUA Pesos: Suma de valores proyectados para cada cocepto que hace parte del indicador.
B49: =BaseCarta!B46 -> Cálculo realizado con los valores vigentes de tasas y tarifas al día de la estimación. Los resultados varían por las condiciones del mercado y por ello, estos valores corresponden a una proyección estimada que puede o no ocurrir. El indicador fue calculado teniendo en cuenta: cupo supuesto de seis salarios mínimos mensuales legales vigentes; un desembolso incial correspondiente al total del cupo; pagos mensuales de capital e intereses, asumiento que todo desembolso es diferido a doce meses; el cupo que se libera es reutilizado inmediatamente; la deuda se cancela en su totalidad al finalizar el mes 12 de tenencia del producto; se incluyen todos los conceptos asociados a tener el producto durante el plazo proyectado.

Sheet Carta_Tarj_Rot2
B2: =TODAY() -> 2026-06-10
B4: Valor Total Unificado (VTU)
B7: Estimado cliente,
B9: Itaú Corpbanca Colombia S.A. pone en práctica el principio de transparencia e información cierta, suficiente y oportuna para los consumidores financieros, y por ello le informamos el Valor Total Unificado (VTU) del producto en el que se encuentra interesado.
B11: El VTU es un indicador que le permite conocer los ingresos y/o costos asociados a tener este producto, estimando mensualmente esos valores durante un plazo específico.
B13: Producto | C13: =BaseCarta!C28 -> Tarjeta de crédito
B14: Cupo estimado | C14: =BaseCarta!C29 -> 7800000
B15: Plazo proyección | C15: =BaseCarta!C31 -> 12
B17: Valor Total Unificado de operaciones Activas (VTUA):
B18: VTUA Porcentual | C18: =BaseCarta!C42 -> 
B20: VTUA Pesos | C20: Concepto | D20: Valor Total
C21: Intereses estimados | D21: 392436.0535
C22: Cuota de manejo | D22: 115200
C23: VTUA | D23: 507636.0535
C24: Costo estimado de este producto durante 12 meses.
B34: =VariablesCarta!D6 -> Acércate a nuestra oficina para conocer más y adquirir este producto.
B37: Cordial Saludo,
B39: a
B40: a
B41: a
B46: Decreto 1854 de 2015, que modifica el Decreto 2555 de 2010.
B47: VTUA Porcentual :Tasa interna de retorno efectiva anual correspondiente a la proyección de los flujos mensuales asociados al producto.
B48: VTUA Pesos: Suma de valores proyectados para cada cocepto que hace parte del indicador.
B49: =BaseCarta!B46 -> Cálculo realizado con los valores vigentes de tasas y tarifas al día de la estimación. Los resultados varían por las condiciones del mercado y por ello, estos valores corresponden a una proyección estimada que puede o no ocurrir. El indicador fue calculado teniendo en cuenta: cupo supuesto de seis salarios mínimos mensuales legales vigentes; un desembolso incial correspondiente al total del cupo; pagos mensuales de capital e intereses, asumiento que todo desembolso es diferido a doce meses; el cupo que se libera es reutilizado inmediatamente; la deuda se cancela en su totalidad al finalizar el mes 12 de tenencia del producto; se incluyen todos los conceptos asociados a tener el producto durante el plazo proyectado.

Sheet Carta_Vivienda1
B2: =TODAY() -> 2026-06-10
B4: Valor Total Unificado (VTU)
B7: Estimado cliente,
B9: Itaú Corpbanca Colombia S.A. pone en práctica el principio de transparencia e información cierta, suficiente y oportuna para los consumidores financieros, y por ello le informamos el Valor Total Unificado (VTU) del producto en el que se encuentra interesado.
B11: El VTU es un indicador que le permite conocer los ingresos y/o costos asociados a tener este producto, estimando mensualmente esos valores durante un plazo específico.
B13: Producto | C13: =Vivienda!D5 -> Crédito de Leasing Habitacional
B14: Línea de crédito | C14: =Vivienda!H5 -> Recolocación
B15: Valor crédito | C15: =Vivienda!D7 -> 0
B16: Plazo proyección | C16: =Vivienda!D11 -> 1
B18: Valor Total Unificado de operaciones Activas (VTUA):
B19: VTUA Porcentual | C19: =Vivienda!E25 -> 
B21: VTUA Pesos | C21: Pago total intereses | D21: 87713925.81
C22: Valor avalúo (IVA incluido) | D22: 142800
C23: Valor estudio de títulos (IVA incluido) | D23: 257143
C24: Pago total seguro de vida | D24: 2221239.215
B34: =VariablesCarta!D6 -> Acércate a nuestra oficina para conocer más y adquirir este producto.
B37: Cordial Saludo,
B39: aaaaa
B40: aaaaa
B41: aaaaa
B46: Decreto 1854 de 2015, que modifica el Decreto 2555 de 2010.
B47: VTUA Porcentual :Tasa interna de retorno efectiva anual correspondiente a la proyección de los flujos mensuales asociados al producto.
B48: VTUA Pesos: Suma de valores proyectados para cada cocepto que hace parte del indicador.
B49: Cálculo realizado con los valores vigentes de tasas y tarifas al día de la estimación. Las tarifas de las comisiones incluyen IVA. Los resultados varían por las condiciones del mercado y por ello, estos valores corresponden a una proyección estimada que puede o no ocurrir. Los conceptos que se tuvieron en cuenta para el cálculo son: cuotas del crédito, primas de seguros, comisiones y cualquier otro concepto inherente a la adquisición del producto. En el caso de crédito hipotecario no se tienen en cuenta gastos notariales y de registro. En la operación de leasing habitacional se excluyen del cálculo el pago de servicios públicos domiciliarios, impuesto predial y valorización, cuotas de administración, gastos notariales y de registro.

Sheet Carta_Vivienda2
B2: =TODAY() -> 2026-06-10
B4: Valor Total Unificado (VTU)
B7: Estimado cliente,
B9: Itaú Corpbanca Colombia S.A. pone en práctica el principio de transparencia e información cierta, suficiente y oportuna para los consumidores financieros, y por ello le informamos el Valor Total Unificado (VTU) del producto en el que se encuentra interesado.
B11: El VTU es un indicador que le permite conocer los ingresos y/o costos asociados a tener este producto, estimando mensualmente esos valores durante un plazo específico.
B13: Producto | C13: =Vivienda!D5 -> Crédito de Leasing Habitacional
B14: Línea de crédito | C14: =Vivienda!H5 -> Recolocación
B15: Valor crédito | C15: =Vivienda!D7 -> 0
B16: Plazo proyección | C16: =Vivienda!D11 -> 1
B18: Valor Total Unificado de operaciones Activas (VTUA):
B19: VTUA Porcentual | C19: =Vivienda!E25 -> 
B21: VTUA Pesos | C21: Concepto | D21: Valor Total
C22: Pago total intereses | D22: 342432925.4
C23: Valor avalúo (Iva incluido) | D23: 380800
C24: Valor estudio de títulos (Iva incluido) | D24: 209275.78
C25: Pago total seguro de vida | D25: 7318411.345
C26: Pago total seguro del inmueble | D26: 10829000
C27: VTUA | D27: 361170412.5
B34: =VariablesCarta!D6 -> Acércate a nuestra oficina para conocer más y adquirir este producto.
B37: Cordial Saludo,
B46: Decreto 1854 de 2015, que modifica el Decreto 2555 de 2010.
B47: VTUA Porcentual :Tasa interna de retorno efectiva anual correspondiente a la proyección de los flujos mensuales asociados al producto.
B48: VTUA Pesos: Suma de valores proyectados para cada cocepto que hace parte del indicador.
B49: Cálculo realizado con los valores vigentes de tasas y tarifas al día de la estimación. Las tarifas de las comisiones incluyen IVA. Los resultados varían por las condiciones del mercado y por ello, estos valores corresponden a una proyección estimada que puede o no ocurrir. Los conceptos que se tuvieron en cuenta para el cálculo son: cuotas del crédito, primas de seguros, comisiones y cualquier otro concepto inherente a la adquisición del producto. En el caso de crédito hipotecario no se tienen en cuenta gastos notariales y de registro. En la operación de leasing habitacional se excluyen del cálculo el pago de servicios públicos domiciliarios, impuesto predial y valorización, cuotas de administración, gastos notariales y de registro.

Sheet BaseCarta
B1: Al modificar alguna posición en este archivo validar macros asociadas a la generación de las cartas
B2: Base Carta
B4: Consumo
B6: VTU pesos
B8: Concepto | C8: Valor Total | D8: Contar variable | E8: Filtro
B9: Intereses estimados | C9: =Consumo!C17 -> 512486703.1 | D9: 1 | E9: =IF(D9>0,1,0) -> 1
B10: Estudio de crédito | C10: 0 | D10: 1 | E10: =IF(D10>0,1,0) -> 1
B11: Seguro de vida | C11: 3971.127848 | D11: 1 | E11: 1
B12: Costo del desembolso | C12: 0 | D12: 1 | E12: 1
B13: Comisión por aval | C13: 0.055 | E13: 0
B14: Valor comisión por aval | C14: 55000 | D14: 1 | E14: 1
B15: Registro garantía ante Confecámaras | C15: 0 | D15: 0 | E15: 0
B16: Levantamiento prenda Confecamáras | C16: 0 | D16: 0 | E16: 0
B17: Avalúo convenio | C17: 0 | D17: 0 | E17: 0
B18: Certificado Dijín (vehículos usados) | C18: 0 | D18: 0 | E18: 0
B19: Valor traspaso | C19: 0 | D19: 0 | E19: 0
B20: VTUA | C20: =IF(SUM(C9:C19)=0,"",SUM(C9:C19)) -> 512545674.3 | D20: 1 | E20: 1
B21: ="Costo estimado durante el plazo proyectado." -> Costo estimado durante el plazo proyectado. | D21: 1 | E21: 1
A23: ==> | B23: Cálculo realizado con los valores vigentes de tasas y tarifas al día de la estimación. Las tarifas de las comisiones incluyen IVA. Los resultados varían por las condiciones del mercado y por ello, estos valores corresponden a una proyección estimada que puede o no ocurrir. Los conceptos que se tuvieron en cuenta para el cálculo son: cuotas del crédito, primas de seguros, comisiones y cualquier otro concepto inherente a tener el producto durante el plazo proyectado.
A24: ==> | B24: Cálculo realizado con los valores vigentes de tasas y tarifas al día de la estimación. Las tarifas de las comisiones incluyen IVA. Los resultados varían por las condiciones del mercado y por ello, estos valores corresponden a una proyección estimada que puede o no ocurrir. Los conceptos que se tuvieron en cuenta para el cálculo son: cuotas del crédito, primas de seguros, comisiones y cualquier otro concepto inherente a tener el producto durante el plazo proyectado. El cálculo está realizado con una amortización mensual a capital e intereses; este valor puede variar de acuerdo al plan de amortización o condiciones especiales en el desembolso.
B26: Tarjeta de crédito o Rotativo
B28: Producto | C28: Tarjeta de crédito
B29: Cupo estimado | C29: =IF(TarjetaCrédito!E8=1,TarjetaCrédito!D18,TarjetaCrédito!D52) -> 7800000
B31: Plazo proyección | C31: =IF(TarjetaCrédito!E8=1,TarjetaCrédito!D19,TarjetaCrédito!D53) -> 12
B33: VTU pesos
B35: Concepto | C35: Valor | D35: Contar variable
B36: Intereses estimados | C36: =IF(TarjetaCrédito!E9=1,TarjetaCrédito!D41,TarjetaCrédito!D75) ->  | D36: 1
B37: Cuota de manejo | C37: =IF(TarjetaCrédito!E7=1,TarjetaCrédito!D42,TarjetaCrédito!D76) ->  | D37: 1
D38: =IF(C38<>0,1,0) -> 0
B39: VTUA | C39: =SUM(C36:C38) ->  | D39: 1
B40: ="Costo estimado de este producto durante "&Carta_Tarj_Rot1!C15&" meses." -> Costo estimado de este producto durante 12 meses. | D40: 1
B42: VTUA % | C42: =IF(TarjetaCrédito!E8=1,TarjetaCrédito!E44,TarjetaCrédito!E78) -> 
A45: ==> | B45: Cálculo realizado con los valores vigentes de tasas y tarifas al día de la estimación. Los resultados varían por las condiciones del mercado y por ello, estos valores corresponden a una proyección estimada que puede o no ocurrir. El indicador fue calculado teniendo en cuenta: cupo supuesto de dos salarios mínimos mensuales legales vigentes; un desembolso incial correspondiente al total del cupo; pagos mensuales de capital e intereses, asumiento que todo desembolso es diferido a doce meses; el cupo que se libera es reutilizado inmediatamente; la deuda se cancela en su totalidad al finalizar el mes 12 de tenencia del producto; se incluyen todos los conceptos asociados a tener el producto durante el plazo proyectado.
A46: ==> | B46: Cálculo realizado con los valores vigentes de tasas y tarifas al día de la estimación. Los resultados varían por las condiciones del mercado y por ello, estos valores corresponden a una proyección estimada que puede o no ocurrir. El indicador fue calculado teniendo en cuenta: cupo supuesto de seis salarios mínimos mensuales legales vigentes; un desembolso incial correspondiente al total del cupo; pagos mensuales de capital e intereses, asumiento que todo desembolso es diferido a doce meses; el cupo que se libera es reutilizado inmediatamente; la deuda se cancela en su totalidad al finalizar el mes 12 de tenencia del producto; se incluyen todos los conceptos asociados a tener el producto durante el plazo proyectado.
B48: Vivienda
B51: Concepto | C51: Valor Total | D51: Contar variable
B52: =+Vivienda!F20 -> Pago total intereses | C52: =+Vivienda!H20 -> 0 | D52: =IF(C52<>0,1,0) -> 0
B53: =+Vivienda!B21 -> Valor avalúo (IVA incluido) | C53: =+Vivienda!D21 ->  | D53: =IF(C53<>0,1,0) -> 
B54: =+Vivienda!B22 -> Estudio de crédito (IVA incluido) | C54: =+Vivienda!D22 -> 0 | D54: 0
B55: =+Vivienda!F21 -> Valor estudio de títulos (IVA incluido) | C55: =+Vivienda!H21 -> 
B56: =+Vivienda!F22 -> Pago total seguro de vida | C56: =+Vivienda!H22 -> 
B57: =+Vivienda!B23 -> Pago total seguro del inmueble | C57: =+Vivienda!D23 -> 
D58: 0
D59: 0
B60: VTUA | C60: =SUM(C52:C59) -> 
B61: ="Costo estimado de este producto durante "&Carta_Vivienda1!C16&" meses." -> Costo estimado de este producto durante 1 meses.

Sheet VariablesCarta
B3: Variables generales carta | C3: 1 | F3: Generar Proforma | H3: 0
C5: Red de oficinas
B6: Lista desplegable canales de venta | C6: =IFERROR(VLOOKUP(C5,B8:C16,2,0),0) -> 1 | D6: =IFERROR(VLOOKUP(C5,B8:D16,3,0),0) -> Acércate a nuestra oficina para conocer más y adquirir este producto.
C7: De este número depende el cuadro de datos que se solicita
B8: Red de oficinas | C8: 1 | D8: Acércate a nuestra oficina para conocer más y adquirir este producto.
B9: Banca de empleados | C9: 1 | D9: Comúnicate con nosotros para conocer más y adquirir este producto.
B10: Gerencia de Ahorro e Inversión | C10: 2 | D10: Comúnicate con nosotros para conocer más y adquirir este producto.
B11: Gerencia Comercial de Vivienda | C11: 2 | D11: Comúnicate con nosotros para conocer más y adquirir este producto.
B12: Fuerza de Venta Créditos Educativos | C12: 2 | D12: Comúnicate con nosotros para conocer más y adquirir este producto.
B13: Fuerza de Venta Elite | C13: 2 | D13: Comúnicate con nosotros para conocer más y adquirir este producto.
B14: Autoflex | C14: 2 | D14: Comúnicate con nosotros para conocer más y adquirir este producto.
B15: Contact Center | C15: 2 | D15: Comúnicate con nosotros para conocer más y adquirir este producto.
B16: Centro Pyme | C16: 2 | D16: Comúnicate con nosotros para conocer más y adquirir este producto.
D21: =SUM(D22:D27) -> 3
B22: Variable | C22: Contenido | D22: Mostar
B23: Nombre del comercial | C23: aaaaa | D23: =IF(C23="",0,1) -> 1
B24: Nombre Oficina o Centro Pyme | D24: =IF(C24="",0,1) -> 0
B25: Canal de venta | D25: 0
B26: Número contacto | C26: aaaaa | D26: 1
B27: Correo electrónico | C27: aaaaa | D27: 1

Sheet ZonasHipo
A1: CODIFICACION MUNICIPIOS - DANE
A2: Codigo Ciudad | B2: Nombre Ciudad | C2: Departamento | D2: ZONA DE RIESGO | E2: TASA MENSUAL | F2: TASA ANUAL
A3: 91263 | B3: EL ENCANTO | C3: Amazonas | D3: 2 | E3: 0.000123 | F3: 0.001476998924
A4: 91405 | B4: LA CHORRERA | C4: Amazonas | D4: 2 | E4: 0.000123 | F4: 0.001476998924
A5: 91407 | B5: LA PEDRERA | C5: Amazonas | D5: 2 | E5: 0.000123 | F5: 0.001476998924
A6: 91430 | B6: LA VICTORIA | C6: Amazonas | D6: 2 | E6: 0.000123 | F6: 0.001476998924
A7: 91001 | B7: LETICIA | C7: Amazonas | D7: 2 | E7: 0.000123 | F7: 0.001476998924
A8: 91460 | B8: MIRITI - PARANA | C8: Amazonas | D8: 2 | E8: 0.000123 | F8: 0.001476998924
A9: 91530 | B9: PUERTO ALEGRIA | C9: Amazonas | D9: 2 | E9: 0.000123 | F9: 0.001476998924
A10: 91536 | B10: PUERTO ARICA | C10: Amazonas | D10: 2 | E10: 0.000123 | F10: 0.001476998924
A11: 91540 | B11: PUERTO NARIÑO | C11: Amazonas | D11: 2 | E11: 0.000123 | F11: 0.001476998924
A12: 91669 | B12: PUERTO SANTANDER | C12: Amazonas | D12: 2 | E12: 0.000123 | F12: 0.001476998924
A13: 91798 | B13: TARAPACA | C13: Amazonas | D13: 2 | E13: 0.000123 | F13: 0.001476998924
A14: 5002 | B14: ABEJORRAL | C14: Antioquia | D14: 2 | E14: 0.000123 | F14: 0.001476998924
A15: 5004 | B15: ABRIAQUI | C15: Antioquia | D15: 2 | E15: 0.000123 | F15: 0.001476998924
A16: 5021 | B16: ALEJANDRIA | C16: Antioquia | D16: 2 | E16: 0.000123 | F16: 0.001476998924
A17: 5030 | B17: AMAGA | C17: Antioquia | D17: 2 | E17: 0.000123 | F17: 0.001476998924
A18: 5031 | B18: AMALFI | C18: Antioquia | D18: 2 | E18: 0.000123 | F18: 0.001476998924
A19: 5034 | B19: ANDES | C19: Antioquia | D19: 2 | E19: 0.000123 | F19: 0.001476998924
A20: 5036 | B20: ANGELOPOLIS | C20: Antioquia | D20: 2 | E20: 0.000123 | F20: 0.001476998924
A21: 5038 | B21: ANGOSTURA | C21: Antioquia | D21: 2 | E21: 0.000123 | F21: 0.001476998924
A22: 5040 | B22: ANORI | C22: Antioquia | D22: 2 | E22: 0.000123 | F22: 0.001476998924
A23: 5044 | B23: ANZA | C23: Antioquia | D23: 2 | E23: 0.000123 | F23: 0.001476998924
A24: 5045 | B24: APARTADO | C24: Antioquia | D24: 2 | E24: 0.000123 | F24: 0.001476998924
A25: 5051 | B25: ARBOLETES | C25: Antioquia | D25: 2 | E25: 0.000123 | F25: 0.001476998924
A26: 5055 | B26: ARGELIA | C26: Antioquia | D26: 2 | E26: 0.000123 | F26: 0.001476998924
A27: 5059 | B27: ARMENIA - ANTIOQUIA | C27: Antioquia | D27: 2 | E27: 0.000123 | F27: 0.001476998924
A28: 5079 | B28: BARBOSA - ANTIOQUIA | C28: Antioquia | D28: 2 | E28: 0.000123 | F28: 0.001476998924
A29: 5088 | B29: BELLO | C29: Antioquia | D29: 2 | E29: 0.000123 | F29: 0.001476998924
A30: 5086 | B30: BELMIRA | C30: Antioquia | D30: 2 | E30: 0.000123 | F30: 0.001476998924
A31: 5091 | B31: BETANIA | C31: Antioquia | D31: 2 | E31: 0.000123 | F31: 0.001476998924
A32: 5093 | B32: BETULIA | C32: Antioquia | D32: 2 | E32: 0.000123 | F32: 0.001476998924
A33: 5107 | B33: BRICEÑO | C33: Antioquia | D33: 2 | E33: 0.000123 | F33: 0.001476998924
A34: 5113 | B34: BURITICA | C34: Antioquia | D34: 2 | E34: 0.000123 | F34: 0.001476998924
A35: 5120 | B35: CACERES | C35: Antioquia | D35: 2 | E35: 0.000123 | F35: 0.001476998924
A36: 5125 | B36: CAICEDO | C36: Antioquia | D36: 2 | E36: 0.000123 | F36: 0.001476998924
A37: 5129 | B37: CALDAS | C37: Antioquia | D37: 2 | E37: 0.000123 | F37: 0.001476998924
A38: 5134 | B38: CAMPAMENTO | C38: Antioquia | D38: 2 | E38: 0.000123 | F38: 0.001476998924
A39: 5138 | B39: CAÑASGORDAS | C39: Antioquia | D39: 2 | E39: 0.000123 | F39: 0.001476998924
A40: 5142 | B40: CARACOLI | C40: Antioquia | D40: 2 | E40: 0.000123 | F40: 0.001476998924
A41: 5145 | B41: CARAMANTA | C41: Antioquia | D41: 2 | E41: 0.000123 | F41: 0.001476998924
A42: 5147 | B42: CAREPA | C42: Antioquia | D42: 2 | E42: 0.000123 | F42: 0.001476998924
A43: 5150 | B43: CAROLINA | C43: Antioquia | D43: 2 | E43: 0.000123 | F43: 0.001476998924
A44: 5154 | B44: CAUCASIA | C44: Antioquia | D44: 2 | E44: 0.000123 | F44: 0.001476998924
A45: 5172 | B45: CHIGORODO | C45: Antioquia | D45: 2 | E45: 0.000123 | F45: 0.001476998924
A46: 5190 | B46: CISNEROS | C46: Antioquia | D46: 2 | E46: 0.000123 | F46: 0.001476998924
A47: 5101 | B47: CIUDAD BOLIVAR | C47: Antioquia | D47: 2 | E47: 0.000123 | F47: 0.001476998924
A48: 5197 | B48: COCORNA | C48: Antioquia | D48: 2 | E48: 0.000123 | F48: 0.001476998924
A49: 5206 | B49: CONCEPCION | C49: Antioquia | D49: 2 | E49: 0.000123 | F49: 0.001476998924
A50: 5209 | B50: CONCORDIA | C50: Antioquia | D50: 2 | E50: 0.000123 | F50: 0.001476998924
A51: 5212 | B51: COPACABANA | C51: Antioquia | D51: 2 | E51: 0.000123 | F51: 0.001476998924
A52: 5234 | B52: DABEIBA | C52: Antioquia | D52: 2 | E52: 0.000123 | F52: 0.001476998924
A53: 5237 | B53: DON MATIAS | C53: Antioquia | D53: 2 | E53: 0.000123 | F53: 0.001476998924
A54: 5240 | B54: EBEJICO | C54: Antioquia | D54: 2 | E54: 0.000123 | F54: 0.001476998924
A55: 5250 | B55: EL BAGRE | C55: Antioquia | D55: 2 | E55: 0.000123 | F55: 0.001476998924
A56: 5148 | B56: EL CARMEN DE VIBORAL | C56: Antioquia | D56: 2 | E56: 0.000123 | F56: 0.001476998924
A57: 5697 | B57: EL SANTUARIO | C57: Antioquia | D57: 2 | E57: 0.000123 | F57: 0.001476998924
A58: 5264 | B58: ENTRERRIOS | C58: Antioquia | D58: 2 | E58: 0.000123 | F58: 0.001476998924
A59: 5266 | B59: ENVIGADO | C59: Antioquia | D59: 2 | E59: 0.000123 | F59: 0.001476998924
A60: 5282 | B60: FREDONIA | C60: Antioquia | D60: 2 | E60: 0.000123 | F60: 0.001476998924
A61: 5284 | B61: FRONTINO | C61: Antioquia | D61: 2 | E61: 0.000123 | F61: 0.001476998924
A62: 5306 | B62: GIRALDO | C62: Antioquia | D62: 2 | E62: 0.000123 | F62: 0.001476998924
A63: 5308 | B63: GIRARDOTA | C63: Antioquia | D63: 2 | E63: 0.000123 | F63: 0.001476998924
A64: 5310 | B64: GOMEZ PLATA | C64: Antioquia | D64: 2 | E64: 0.000123 | F64: 0.001476998924
A65: 5313 | B65: GRANADA | C65: Antioquia | D65: 2 | E65: 0.000123 | F65: 0.001476998924
A66: 5315 | B66: GUADALUPE | C66: Antioquia | D66: 2 | E66: 0.000123 | F66: 0.001476998924
A67: 5318 | B67: GUARNE | C67: Antioquia | D67: 2 | E67: 0.000123 | F67: 0.001476998924
A68: 5321 | B68: GUATAPE | C68: Antioquia | D68: 2 | E68: 0.000123 | F68: 0.001476998924
A69: 5347 | B69: HELICONIA | C69: Antioquia | D69: 2 | E69: 0.000123 | F69: 0.001476998924
A70: 5353 | B70: HISPANIA | C70: Antioquia | D70: 2 | E70: 0.000123 | F70: 0.001476998924
A71: 5360 | B71: ITAGUI | C71: Antioquia | D71: 2 | E71: 0.000123 | F71: 0.001476998924
A72: 5361 | B72: ITUANGO | C72: Antioquia | D72: 2 | E72: 0.000123 | F72: 0.001476998924
A73: 5364 | B73: JARDIN | C73: Antioquia | D73: 2 | E73: 0.000123 | F73: 0.001476998924
A74: 5368 | B74: JERICO | C74: Antioquia | D74: 2 | E74: 0.000123 | F74: 0.001476998924
A75: 5376 | B75: LA CEJA | C75: Antioquia | D75: 2 | E75: 0.000123 | F75: 0.001476998924
A76: 5380 | B76: LA ESTRELLA | C76: Antioquia | D76: 2 | E76: 0.000123 | F76: 0.001476998924
A77: 5390 | B77: LA PINTADA | C77: Antioquia | D77: 2 | E77: 0.000123 | F77: 0.001476998924
A78: 5400 | B78: LA UNION ANTIOQUIA | C78: Antioquia | D78: 2 | E78: 0.000123 | F78: 0.001476998924
A79: 5411 | B79: LIBORINA | C79: Antioquia | D79: 2 | E79: 0.000123 | F79: 0.001476998924
A80: 5425 | B80: MACEO | C80: Antioquia | D80: 2 | E80: 0.000123 | F80: 0.001476998924
A81: 5440 | B81: MARINILLA | C81: Antioquia | D81: 2 | E81: 0.000123 | F81: 0.001476998924
A82: 5001 | B82: MEDELLIN | C82: Antioquia | D82: 2 | E82: 0.000123 | F82: 0.001476998924
A83: 5467 | B83: MONTEBELLO | C83: Antioquia | D83: 2 | E83: 0.000123 | F83: 0.001476998924
A84: 5475 | B84: MURINDO | C84: Antioquia | D84: 2 | E84: 0.000123 | F84: 0.001476998924
A85: 5480 | B85: MUTATA | C85: Antioquia | D85: 2 | E85: 0.000123 | F85: 0.001476998924
A86: 5483 | B86: NARIÑO | C86: Antioquia | D86: 2 | E86: 0.000123 | F86: 0.001476998924
A87: 5495 | B87: NECHI | C87: Antioquia | D87: 2 | E87: 0.000123 | F87: 0.001476998924
A88: 5490 | B88: NECOCLI | C88: Antioquia | D88: 2 | E88: 0.000123 | F88: 0.001476998924
A89: 5501 | B89: OLAYA | C89: Antioquia | D89: 2 | E89: 0.000123 | F89: 0.001476998924
A90: 5541 | B90: PEÑOL | C90: Antioquia | D90: 2 | E90: 0.000123 | F90: 0.001476998924
A91: 5543 | B91: PEQUE | C91: Antioquia | D91: 2 | E91: 0.000123 | F91: 0.001476998924
A92: 5576 | B92: PUEBLORRICO | C92: Antioquia | D92: 2 | E92: 0.000123 | F92: 0.001476998924
A93: 5579 | B93: PUERTO BERRIO | C93: Antioquia | D93: 2 | E93: 0.000123 | F93: 0.001476998924
A94: 5585 | B94: PUERTO NARE | C94: Antioquia | D94: 2 | E94: 0.000123 | F94: 0.001476998924
A95: 5591 | B95: PUERTO TRIUNFO | C95: Antioquia | D95: 2 | E95: 0.000123 | F95: 0.001476998924
A96: 5604 | B96: REMEDIOS | C96: Antioquia | D96: 2 | E96: 0.000123 | F96: 0.001476998924
A97: 5607 | B97: RETIRO | C97: Antioquia | D97: 2 | E97: 0.000123 | F97: 0.001476998924
A98: 5615 | B98: RIONEGRO | C98: Antioquia | D98: 2 | E98: 0.000123 | F98: 0.001476998924
A99: 5628 | B99: SABANALARGA - ANTIOQUIA | C99: Antioquia | D99: 2 | E99: 0.000123 | F99: 0.001476998924
A100: 5631 | B100: SABANETA | C100: Antioquia | D100: 2 | E100: 0.000123 | F100: 0.001476998924
A101: 5642 | B101: SALGAR | C101: Antioquia | D101: 2 | E101: 0.000123 | F101: 0.001476998924
A102: 5647 | B102: SAN ANDRES | C102: Antioquia | D102: 2 | E102: 0.000123 | F102: 0.001476998924
A103: 5649 | B103: SAN CARLOS | C103: Antioquia | D103: 2 | E103: 0.000123 | F103: 0.001476998924
A104: 5652 | B104: SAN FRANCISCO | C104: Antioquia | D104: 2 | E104: 0.000123 | F104: 0.001476998924
A105: 5656 | B105: SAN JERONIMO | C105: Antioquia | D105: 2 | E105: 0.000123 | F105: 0.001476998924
A106: 5658 | B106: SAN JOSE DE LA MONTAÑA | C106: Antioquia | D106: 2 | E106: 0.000123 | F106: 0.001476998924
A107: 5659 | B107: SAN JUAN DE URABA | C107: Antioquia | D107: 2 | E107: 0.000123 | F107: 0.001476998924
A108: 5660 | B108: SAN LUIS | C108: Antioquia | D108: 2 | E108: 0.000123 | F108: 0.001476998924
A109: 5664 | B109: SAN PEDRO ANTIOQUIA | C109: Antioquia | D109: 2 | E109: 0.000123 | F109: 0.001476998924
A110: 5665 | B110: SAN PEDRO DE URABA | C110: Antioquia | D110: 2 | E110: 0.000123 | F110: 0.001476998924
A111: 5667 | B111: SAN RAFAEL | C111: Antioquia | D111: 2 | E111: 0.000123 | F111: 0.001476998924
A112: 5670 | B112: SAN ROQUE | C112: Antioquia | D112: 2 | E112: 0.000123 | F112: 0.001476998924
A113: 5674 | B113: SAN VICENTE | C113: Antioquia | D113: 2 | E113: 0.000123 | F113: 0.001476998924
A114: 5679 | B114: SANTA BARBARA ANTIOQUIA | C114: Antioquia | D114: 2 | E114: 0.000123 | F114: 0.001476998924
A115: 5686 | B115: SANTA ROSA DE OSOS | C115: Antioquia | D115: 2 | E115: 0.000123 | F115: 0.001476998924
A116: 5042 | B116: SANTAFE DE ANTIOQUIA | C116: Antioquia | D116: 2 | E116: 0.000123 | F116: 0.001476998924
A117: 5690 | B117: SANTO DOMINGO | C117: Antioquia | D117: 2 | E117: 0.000123 | F117: 0.001476998924
A118: 5736 | B118: SEGOVIA | C118: Antioquia | D118: 2 | E118: 0.000123 | F118: 0.001476998924
A119: 5756 | B119: SONSON | C119: Antioquia | D119: 2 | E119: 0.000123 | F119: 0.001476998924
A120: 5761 | B120: SOPETRAN | C120: Antioquia | D120: 2 | E120: 0.000123 | F120: 0.001476998924
A121: 5789 | B121: TAMESIS | C121: Antioquia | D121: 2 | E121: 0.000123 | F121: 0.001476998924
A122: 5790 | B122: TARAZA | C122: Antioquia | D122: 2 | E122: 0.000123 | F122: 0.001476998924
A123: 5792 | B123: TARSO | C123: Antioquia | D123: 2 | E123: 0.000123 | F123: 0.001476998924
A124: 5809 | B124: TITIRIBI | C124: Antioquia | D124: 2 | E124: 0.000123 | F124: 0.001476998924
A125: 5819 | B125: TOLEDO | C125: Antioquia | D125: 2 | E125: 0.000123 | F125: 0.001476998924
A126: 5837 | B126: TURBO | C126: Antioquia | D126: 2 | E126: 0.000123 | F126: 0.001476998924
A127: 5842 | B127: URAMITA | C127: Antioquia | D127: 2 | E127: 0.000123 | F127: 0.001476998924
A128: 5847 | B128: URRAO | C128: Antioquia | D128: 2 | E128: 0.000123 | F128: 0.001476998924
A129: 5854 | B129: VALDIVIA | C129: Antioquia | D129: 2 | E129: 0.000123 | F129: 0.001476998924
A130: 5856 | B130: VALPARAISO | C130: Antioquia | D130: 2 | E130: 0.000123 | F130: 0.001476998924
A131: 5858 | B131: VEGACHI | C131: Antioquia | D131: 2 | E131: 0.000123 | F131: 0.001476998924
A132: 5861 | B132: VENECIA | C132: Antioquia | D132: 2 | E132: 0.000123 | F132: 0.001476998924
A133: 5873 | B133: VIGIA DEL FUERTE | C133: Antioquia | D133: 2 | E133: 0.000123 | F133: 0.001476998924
A134: 5885 | B134: YALI | C134: Antioquia | D134: 2 | E134: 0.000123 | F134: 0.001476998924
A135: 5887 | B135: YARUMAL | C135: Antioquia | D135: 2 | E135: 0.000123 | F135: 0.001476998924
A136: 5890 | B136: YOLOMBO | C136: Antioquia | D136: 2 | E136: 0.000123 | F136: 0.001476998924
A137: 5893 | B137: YONDO | C137: Antioquia | D137: 2 | E137: 0.000123 | F137: 0.001476998924
A138: 5895 | B138: ZARAGOZA | C138: Antioquia | D138: 2 | E138: 0.000123 | F138: 0.001476998924
A139: 81001 | B139: ARAUCA | C139: Arauca | D139: 3 | E139: 0.000128 | F139: 0.001537081806
A140: 81065 | B140: ARAUQUITA | C140: Arauca | D140: 3 | E140: 0.000128 | F140: 0.001537081806
A141: 81220 | B141: CRAVO NORTE | C141: Arauca | D141: 3 | E141: 0.000128 | F141: 0.001537081806
A142: 81300 | B142: FORTUL | C142: Arauca | D142: 3 | E142: 0.000128 | F142: 0.001537081806
A143: 81591 | B143: PUERTO RONDON | C143: Arauca | D143: 3 | E143: 0.000128 | F143: 0.001537081806
A144: 81736 | B144: SARAVENA | C144: Arauca | D144: 3 | E144: 0.000128 | F144: 0.001537081806
A145: 81794 | B145: TAME | C145: Arauca | D145: 3 | E145: 0.000128 | F145: 0.001537081806
A146: 88564 | B146: PROVIDENCIA | C146: San Andres | D146: 1 | E146: 0.0089 | F146: 0.001068522941
A147: 88001 | B147: SAN ANDRES ISLAS | C147: San Andres | D147: 1 | E147: 0.0089 | F147: 0.001068522941
A148: 8078 | B148: BARANOA | C148: Atlantico | D148: 1 | E148: 0.0089 | F148: 0.001068522941
A149: 8001 | B149: BARRANQUILLA | C149: Atlantico | D149: 1 | E149: 0.0089 | F149: 0.001068522941
A150: 8137 | B150: CAMPO DE LA CRUZ | C150: Atlantico | D150: 1 | E150: 0.0089 | F150: 0.001068522941
A151: 8141 | B151: CANDELARIA | C151: Atlantico | D151: 1 | E151: 0.0089 | F151: 0.001068522941
A152: 8296 | B152: GALAPA | C152: Atlantico | D152: 1 | E152: 0.0089 | F152: 0.001068522941
A153: 8372 | B153: JUAN DE ACOSTA | C153: Atlantico | D153: 1 | E153: 0.0089 | F153: 0.001068522941
A154: 8421 | B154: LURUACO | C154: Atlantico | D154: 1 | E154: 0.0089 | F154: 0.001068522941
A155: 8433 | B155: MALAMBO | C155: Atlantico | D155: 1 | E155: 0.0089 | F155: 0.001068522941
A156: 8436 | B156: MANATI | C156: Atlantico | D156: 1 | E156: 0.0089 | F156: 0.001068522941
A157: 8520 | B157: PALMAR DE VARELA | C157: Atlantico | D157: 1 | E157: 0.0089 | F157: 0.001068522941
A158: 8549 | B158: PIOJO | C158: Atlantico | D158: 1 | E158: 0.0089 | F158: 0.001068522941
A159: 8558 | B159: POLONUEVO | C159: Atlantico | D159: 1 | E159: 0.0089 | F159: 0.001068522941
A160: 8560 | B160: PONEDERA | C160: Atlantico | D160: 1 | E160: 0.0089 | F160: 0.001068522941
A161: 8573 | B161: PUERTO COLOMBIA | C161: Atlantico | D161: 1 | E161: 0.0089 | F161: 0.001068522941
A162: 8606 | B162: REPELON | C162: Atlantico | D162: 1 | E162: 0.0089 | F162: 0.001068522941
A163: 8634 | B163: SABANAGRANDE | C163: Atlantico | D163: 1 | E163: 0.0089 | F163: 0.001068522941
A164: 8638 | B164: SABANALARGA - ATLANTICO | C164: Atlantico | D164: 1 | E164: 0.0089 | F164: 0.001068522941
A165: 8675 | B165: SANTA LUCIA | C165: Atlantico | D165: 1 | E165: 0.0089 | F165: 0.001068522941
A166: 8685 | B166: SANTO TOMAS | C166: Atlantico | D166: 1 | E166: 0.0089 | F166: 0.001068522941
A167: 8758 | B167: SOLEDAD | C167: Atlantico | D167: 1 | E167: 0.0089 | F167: 0.001068522941
A168: 8770 | B168: SUAN | C168: Atlantico | D168: 1 | E168: 0.0089 | F168: 0.001068522941
A169: 8832 | B169: TUBARA | C169: Atlantico | D169: 1 | E169: 0.0089 | F169: 0.001068522941
A170: 8849 | B170: USIACURI | C170: Atlantico | D170: 1 | E170: 0.0089 | F170: 0.001068522941
A171: 11001 | B171: BOGOTA | C171: BOGOTA | D171: 3 | E171: 0.000128 | F171: 0.001537081806
A172: 13006 | B172: ACHI | C172: Bolivar | D172: 1 | E172: 0.0089 | F172: 0.001068522941
A173: 13030 | B173: ALTOS DEL ROSARIO | C173: Bolivar | D173: 1 | E173: 0.0089 | F173: 0.001068522941
A174: 13042 | B174: ARENAL | C174: Bolivar | D174: 1 | E174: 0.0089 | F174: 0.001068522941
A175: 13052 | B175: ARJONA | C175: Bolivar | D175: 1 | E175: 0.0089 | F175: 0.001068522941
A176: 13062 | B176: ARROYOHONDO | C176: Bolivar | D176: 1 | E176: 0.0089 | F176: 0.001068522941
A177: 13074 | B177: BARRANCO DE LOBA | C177: Bolivar | D177: 1 | E177: 0.0089 | F177: 0.001068522941
A178: 13140 | B178: CALAMAR | C178: Bolivar | D178: 1 | E178: 0.0089 | F178: 0.001068522941
A179: 13160 | B179: CANTAGALLO | C179: Bolivar | D179: 1 | E179: 0.0089 | F179: 0.001068522941
A180: 13001 | B180: CARTAGENA | C180: Bolivar | D180: 1 | E180: 0.0089 | F180: 0.001068522941
A181: 13188 | B181: CICUCO | C181: Bolivar | D181: 1 | E181: 0.0089 | F181: 0.001068522941
A182: 13222 | B182: CLEMENCIA | C182: Bolivar | D182: 1 | E182: 0.0089 | F182: 0.001068522941
A183: 13212 | B183: CORDOBA | C183: Bolivar | D183: 1 | E183: 0.0089 | F183: 0.001068522941
A184: 13244 | B184: EL CARMEN DE BOLIVAR | C184: Bolivar | D184: 1 | E184: 0.0089 | F184: 0.001068522941
A185: 13248 | B185: EL GUAMO | C185: Bolivar | D185: 1 | E185: 0.0089 | F185: 0.001068522941
A186: 13268 | B186: EL PEÑON | C186: Bolivar | D186: 1 | E186: 0.0089 | F186: 0.001068522941
A187: 13300 | B187: HATILLO DE LOBA | C187: Bolivar | D187: 1 | E187: 0.0089 | F187: 0.001068522941
A188: 13430 | B188: MAGANGUE | C188: Bolivar | D188: 1 | E188: 0.0089 | F188: 0.001068522941
A189: 13433 | B189: MAHATES | C189: Bolivar | D189: 1 | E189: 0.0089 | F189: 0.001068522941
A190: 13440 | B190: MARGARITA | C190: Bolivar | D190: 1 | E190: 0.0089 | F190: 0.001068522941
A191: 13442 | B191: MARIA LA BAJA | C191: Bolivar | D191: 1 | E191: 0.0089 | F191: 0.001068522941
A192: 13468 | B192: MOMPOS | C192: Bolivar | D192: 1 | E192: 0.0089 | F192: 0.001068522941
A193: 13458 | B193: MONTECRISTO | C193: Bolivar | D193: 1 | E193: 0.0089 | F193: 0.001068522941
A194: 13473 | B194: MORALES | C194: Bolivar | D194: 1 | E194: 0.0089 | F194: 0.001068522941
A195: 13549 | B195: PINILLOS | C195: Bolivar | D195: 1 | E195: 0.0089 | F195: 0.001068522941
A196: 13580 | B196: REGIDOR | C196: Bolivar | D196: 1 | E196: 0.0089 | F196: 0.001068522941
A197: 13600 | B197: RIO VIEJO | C197: Bolivar | D197: 1 | E197: 0.0089 | F197: 0.001068522941
A198: 13620 | B198: SAN CRISTOBAL | C198: Bolivar | D198: 1 | E198: 0.0089 | F198: 0.001068522941
A199: 13647 | B199: SAN ESTANISLAO | C199: Bolivar | D199: 1 | E199: 0.0089 | F199: 0.001068522941
A200: 13650 | B200: SAN FERNANDO | C200: Bolivar | D200: 1 | E200: 0.0089 | F200: 0.001068522941
... 930 more rows

Sheet Hoja1
B2: Hola Karen,
B4: Agradezco por favor tu apoyo ajustando los siguientes puntos dentro del simulador:
B6: En la línea de producto Adquisición de Vivienda incluir las palabras nueva o usada, es decir la línea de producto deberá quedar como Adquisición de Vivienda nueva o usada (Aplica para Hipotecario y Leasing Habitacional).
B8: En las siguientes sublíneas de producto Leasing Habitacional por favor incluir el cobro de estudio de crédito, el simulador lo está dejando en $0.
B10: Adición por mejoras
B11: Cesión de contratos
B12: Recolocación
B13: Devolución de canones extraordinarios
B15: En la lista de sublíneas de Leasing Habitacional incluir el producto Leaseback Habitacional que para efectos del simulador tiene las mismas características de Leasing Habitacional para adquisición de Vivienda.
